Body Name,Body,Service Division Label,Service Division Code,Organisational Unit,Expenditure Category,Expenditure Code,CIPFA detailed expediture type,CIPFA detailed expediture code,Narrative,Date,Transaction number,Net Amount,Capital and Revenue,Supplier Name,Supplier ID,,
Chorley Borough Council,http://statistics.data.gov.uk/id/local-authority/30UE,Central Support Services,1009,Communities,Core Funding Grants,40133,Grants and Subscriptions,5031,Core Small Funding Grant,26/01/2022,0163157,360.00,Revenue,1st Clayton Brook Scout Group,65993,,
Chorley Borough Council,http://statistics.data.gov.uk/id/local-authority/30UE,Capital,Capital,Commercial & Property,Other Capital Related Fees,03024,Capital Expenditure,Capital,"Mason's Cafe quoted works, Timber partition to construct glazed screen, T & G matchboard timber effect, 6mm laminated glass",12/01/2022,0162928,"5,260.00",Capital,A P Sharrocks Joinery & Building LTD,82093,,
Chorley Borough Council,http://statistics.data.gov.uk/id/local-authority/30UE,Capital,Capital,Commercial & Property,Other Capital Related Fees,03024,Capital Expenditure,Capital,"Mason's cafe extras, additional frame and matchboard to top section of screed, metal corner trims",12/01/2022,0162928,664.80,Capital,A P Sharrocks Joinery & Building LTD,82093,,
Chorley Borough Council,http://statistics.data.gov.uk/id/local-authority/30UE,Capital,Capital,Commercial & Property,Other Capital Related Fees,03024,Capital Expenditure,Capital,"Alteration to stud wall, cut existing stud wall down by approx 700mm, form stud frame to create window opening, laminated glass",12/01/2022,0162928,440.00,Capital,A P Sharrocks Joinery & Building LTD,82093,,
Chorley Borough Council,http://statistics.data.gov.uk/id/local-authority/30UE,Capital,Capital,Commercial & Property,Other Capital Related Fees,03024,Capital Expenditure,Capital,CIS labour standard (20%) Labour charge for the above works,12/01/2022,0162928,"1,591.20",Capital,A P Sharrocks Joinery & Building LTD,82093,,
Chorley Borough Council,http://statistics.data.gov.uk/id/local-authority/30UE,Building Control,1090,Customer & Digital,Miscellaneous Expenses,40200,Miscellaneous Expenses,5034,Building Control structural engineer consultancy fees- financial year 01.04.2021 - 31.03.2022,26/01/2022,0164236,300.00,Revenue,Adrian Fitch,83125,,
Chorley Borough Council,http://statistics.data.gov.uk/id/local-authority/30UE,Community Development,1097,Communities,Core Funding Grants,40133,Grants and Subscriptions,5031,Core funding for delivery of Older Peoples support service - subject to successful completion of Quarter two monitoring,05/01/2022,0163461,"5,000.00",Revenue,Age UK,21252,,
Chorley Borough Council,http://statistics.data.gov.uk/id/local-authority/30UE,Development Control,1091,Policy & Governance,Legal Fees,40171,Miscellaneous Expenses,5034,"Professional fees in relation to an appeal in relation to Carrington Road, and appeal to proposed development at Parr Lane",26/01/2022,0163805,450.00,Revenue,Alan Evans,16692,,
Chorley Borough Council,http://statistics.data.gov.uk/id/local-authority/30UE,Culture & Heritage,1036,Policy & Governance,Arts Development Initiatives,40187,Miscellaneous Expenses,5034,"Stone carved lions head, ceramic maquette and stone carving tools.",05/01/2022,0163767,500.00,Revenue,Alan Ward,84226,,
Chorley Borough Council,http://statistics.data.gov.uk/id/local-authority/30UE,Central Support Services,1009,Customer & Digital,Bank Charges,40151,Miscellaneous Expenses,5034,add ac fee,19/01/2022,0164020,10.00,Revenue,Allpay Net Ltd,17242,,
Chorley Borough Council,http://statistics.data.gov.uk/id/local-authority/30UE,Central Support Services,1009,Customer & Digital,Bank Charges,40151,Miscellaneous Expenses,5034,post office,19/01/2022,0164020,561.66,Revenue,Allpay Net Ltd,17242,,
Chorley Borough Council,http://statistics.data.gov.uk/id/local-authority/30UE,Central Support Services,1009,Customer & Digital,Bank Charges,40151,Miscellaneous Expenses,5034,paypoint,19/01/2022,0164020,188.83,Revenue,Allpay Net Ltd,17242,,
Chorley Borough Council,http://statistics.data.gov.uk/id/local-authority/30UE,Central Support Services,1009,Customer & Digital,Bank Charges,40151,Miscellaneous Expenses,5034,webconn,19/01/2022,0164020,46.00,Revenue,Allpay Net Ltd,17242,,
Chorley Borough Council,http://statistics.data.gov.uk/id/local-authority/30UE,Central Support Services,1009,Communities,External Contractor,40198,Miscellaneous Expenses,5034,Providing Pest Control for Chorley Council,05/01/2022,0163028,"5,667.54",Revenue,ALPHA PEST CONTROL LIMITED,18208,,
Chorley Borough Council,http://statistics.data.gov.uk/id/local-authority/30UE,Central Support Services,1009,Communities,External Contractor,40198,Miscellaneous Expenses,5034,cancelled by credit78016,05/01/2022,0163530,808.47,Revenue,ALPHA PEST CONTROL LIMITED,18208,,
Chorley Borough Council,http://statistics.data.gov.uk/id/local-authority/30UE,Central Support Services,1009,Communities,External Contractor,40198,Miscellaneous Expenses,5034,Providing Pest Control for Chorley Council,26/01/2022,0163916,"4,599.36",Revenue,ALPHA PEST CONTROL LIMITED,18208,,
Chorley Borough Council,http://statistics.data.gov.uk/id/local-authority/30UE,Capital,Capital,Communities,Main Contractor,03007,Capital Expenditure,Capital,Installation of lighting at Astley park - main contractor,26/01/2022,0164274,"14,756.03",Capital,Altitude Services Ltd,77719,,
Chorley Borough Council,http://statistics.data.gov.uk/id/local-authority/30UE,Central Support Services,1009,Commercial & Property,General Repairs - Reactive,20004,Repairs Maintenance & Alts,5005,Primrose Gardens  - reactive repair works,12/01/2022,0161520,"1,143.30",Revenue,Amalgamated Ltd,78289,,
Chorley Borough Council,http://statistics.data.gov.uk/id/local-authority/30UE,Capital,Capital,Commercial & Property,Other Contractor,03012,Capital Expenditure,Capital,"Strawberry Fields, Fire Alarm System, Install additional smoke detector in new lobby area, 2 x fire alarm interfaces also installed",12/01/2022,0162975,801.57,Capital,Amalgamated Ltd,78289,,
Chorley Borough Council,http://statistics.data.gov.uk/id/local-authority/30UE,Capital,Capital,Commercial & Property,Other Contractor,03012,Capital Expenditure,Capital,"Strawberry Fields, Access Control System, Addition door Paxton access installation 2nd floor new doors to be integrated",12/01/2022,0162976,"1,967.13",Capital,Amalgamated Ltd,78289,,
Chorley Borough Council,http://statistics.data.gov.uk/id/local-authority/30UE,Central Support Services,1009,Commercial & Property,General Repairs - Reactive,20004,Repairs Maintenance & Alts,5005,Union St - reactive repair works,05/01/2022,0163512,565.25,Revenue,Amalgamated Ltd,78289,,
Chorley Borough Council,http://statistics.data.gov.uk/id/local-authority/30UE,Central Support Services,1009,Commercial & Property,General Repairs - Reactive,20004,Repairs Maintenance & Alts,5005,"Cotswold House, Access Control, Two of the Kantec controllers are faulty, replace and reprogram on to the system",12/01/2022,0163513,"2,427.50",Revenue,Amalgamated Ltd,78289,,
Chorley Borough Council,http://statistics.data.gov.uk/id/local-authority/30UE,Central Support Services,1009,Policy & Governance,Miscellaneous Expenses,40200,Miscellaneous Expenses,5034,"Santa for Santa's Grotto. 9am - 5pm 27 & 28 November & 4, 5, 11, 12, 18 & 19 December",26/01/2022,0164239,"1,200.00",Revenue,Andrea Price Management,76897,,
Chorley Borough Council,http://statistics.data.gov.uk/id/local-authority/30UE,Central Support Services,1009,Policy & Governance,Refreshments,40036,Catering,5024,"Sanitisation, provision of water and hire of machines for all Council sites - 2021/22",12/01/2022,0162458,"1,376.33",Revenue,Angel Springs Ltd T/A Waterlogic UK,77689,,
Chorley Borough Council,http://statistics.data.gov.uk/id/local-authority/30UE,Central Support Services,1009,Policy & Governance,Refreshments,40036,Catering,5024,"Sanitisation, provision of water and hire of machines for all Council sites - 2021/22",26/01/2022,0163868,256.62,Revenue,Angel Springs Ltd T/A Waterlogic UK,77689,,
Chorley Borough Council,http://statistics.data.gov.uk/id/local-authority/30UE,Central Support Services,1009,Communities,Impounded Dogs Costs,40207,Miscellaneous Expenses,5034,Delivery of stray dog kennelling for November 2021,19/01/2022,0163563,400.00,Revenue,Animal Wardens Ltd,80965,,
Chorley Borough Council,http://statistics.data.gov.uk/id/local-authority/30UE,Central Support Services,1009,Communities,Impounded Dogs Costs,40207,Miscellaneous Expenses,5034,Stray Dogs Kennelling Retainer - Dec 21,26/01/2022,0164082,320.00,Revenue,Animal Wardens Ltd,80965,,
Chorley Borough Council,http://statistics.data.gov.uk/id/local-authority/30UE,Central Support Services,1009,Policy & Governance,Car Leasing Payment,14100,Direct Employee Expenses,5001,VIN REDACTED,12/01/2022,0163321,"2,303.04",Revenue,Arnold Clark Finance Ltd,20685,,
Chorley Borough Council,http://statistics.data.gov.uk/id/local-authority/30UE,Central Support Services,1009,Policy & Governance,Car Leasing Payment,14100,Direct Employee Expenses,5001,vat,12/01/2022,0163321,191.06,Revenue,Arnold Clark Finance Ltd,20685,,
Chorley Borough Council,http://statistics.data.gov.uk/id/local-authority/30UE,Control Accounts,Control,Policy & Governance,Manual Control Account,00001,Balance Sheet,Balance,-vat,12/01/2022,0163321,-191.06,Revenue,Arnold Clark Finance Ltd,20685,,
Chorley Borough Council,http://statistics.data.gov.uk/id/local-authority/30UE,Public Transport,1067,Customer & Digital,Bus Shelters -Maintenance,20062,Grounds Maintenance Costs,5013,"Replacement shelter installing at Brooke Street, Chorley, Removal of concrete shelter at ADDRESS REDACTED and installation",05/01/2022,0162912,"8,215.00",Revenue,Autocross Euroshel Ltd,77509,,
Chorley Borough Council,http://statistics.data.gov.uk/id/local-authority/30UE,Service Management & Support,1009,Customer & Digital,Vehicles and Plant Maintenance,30045,Direct Transport Costs,5016,"NU08 KOJ, MOT, Service, New Tyre, Front brake disks and pads",05/01/2022,0163483,262.35,Revenue,Autofit,78140,,
Chorley Borough Council,http://statistics.data.gov.uk/id/local-authority/30UE,Service Management & Support,1009,Customer & Digital,Vehicles and Plant Maintenance,30045,Direct Transport Costs,5016,mot,05/01/2022,0163483,49.50,Revenue,Autofit,78140,,
Chorley Borough Council,http://statistics.data.gov.uk/id/local-authority/30UE,Service Management & Support,1009,Customer & Digital,Vehicles and Plant Maintenance,30045,Direct Transport Costs,5016,"FL66 POJ, rear brake discs and pads, Marker lights, MOT test, New tyre, N/S Rear caliper",05/01/2022,0163485,585.09,Revenue,Autofit,78140,,
Chorley Borough Council,http://statistics.data.gov.uk/id/local-authority/30UE,Service Management & Support,1009,Customer & Digital,Vehicles and Plant Maintenance,30045,Direct Transport Costs,5016,mot,05/01/2022,0163485,54.45,Revenue,Autofit,78140,,
Chorley Borough Council,http://statistics.data.gov.uk/id/local-authority/30UE,Service Management & Support,1009,Customer & Digital,Vehicles and Plant Maintenance,30045,Direct Transport Costs,5016,"FL66 OWC, MOT test, Front brake discs and pads, New side marker x 2 , Full service",12/01/2022,0163493,418.44,Revenue,Autofit,78140,,
Chorley Borough Council,http://statistics.data.gov.uk/id/local-authority/30UE,Service Management & Support,1009,Customer & Digital,Vehicles and Plant Maintenance,30045,Direct Transport Costs,5016,mot,12/01/2022,0163493,54.45,Revenue,Autofit,78140,,
Chorley Borough Council,http://statistics.data.gov.uk/id/local-authority/30UE,Capital,Capital,Commercial & Property,Main Contractor,03007,Capital Expenditure,Capital,"Prepare and Paint Union Street Fences, thorough jet washing to remove contaminations and moss build up, cold hand tools",26/01/2022,0164283,"3,684.00",Capital,Bagnalls,77004,,
Chorley Borough Council,http://statistics.data.gov.uk/id/local-authority/30UE,Service Management & Support,1009,Customer & Digital,Vehicles and Plant Maintenance,30045,Direct Transport Costs,5016,"2x drive belts, 2x service kits, 2x sets of blades",12/01/2022,0163443,397.35,Revenue,Balmers Garden Machinery,17075,,
Chorley Borough Council,http://statistics.data.gov.uk/id/local-authority/30UE,Corporate Management,1008,Policy & Governance,Miscellaneous Expenses,40200,Miscellaneous Expenses,5034,"4.5 week Radio campaign on Rock FM end November - end December 2021, to promote Christmas in Chorley",05/01/2022,0163277,"1,515.76",Revenue,Bauer Active Ltd,50574,,
Chorley Borough Council,http://statistics.data.gov.uk/id/local-authority/30UE,Corporate Management,1008,Policy & Governance,Miscellaneous Expenses,40200,Miscellaneous Expenses,5034,"4.5 week Radio campaign on Rock FM end November - end December 2021, to promote Christmas in Chorley",19/01/2022,0163975,"3,559.24",Revenue,Bauer Active Ltd,50574,,
Chorley Borough Council,http://statistics.data.gov.uk/id/local-authority/30UE,Development Control,1091,Policy & Governance,Computer Software-Maintenance,40107,Communication and Computing,5028,Heritage Services from April 2021 to March 2022,19/01/2022,0163274,"3,526.55",Revenue,Blackburn with Darwen Borough Council,21000,,
Chorley Borough Council,http://statistics.data.gov.uk/id/local-authority/30UE,Development Control,1091,Policy & Governance,Computer Software-Maintenance,40107,Communication and Computing,5028,Heritage Services from April 2021 to March 2022,19/01/2022,0163497,"1,060.93",Revenue,Blackburn with Darwen Borough Council,21000,,
Chorley Borough Council,http://statistics.data.gov.uk/id/local-authority/30UE,Business Support,1095,Commercial & Property,Electricity,20013,Energy Costs,5006,29/11 to 28/12/21,26/01/2022,0164144,494.22,Revenue,British Gas Business,22242,,
Chorley Borough Council,http://statistics.data.gov.uk/id/local-authority/30UE,Central Support Services,1009,Commercial & Property,General Repairs - Reactive,20004,Repairs Maintenance & Alts,5005,"Rivington Pike Tower, Under take Graffiti Removal, Set up site, Transport gear including Van, Landrover, off vehicle plant/Dumper",26/01/2022,0162221,"4,248.92",Revenue,Bullen Conservation Ltd,68424,,
Chorley Borough Council,http://statistics.data.gov.uk/id/local-authority/30UE,Central Support Services,1009,Communities,Miscellaneous Expenses,40200,Miscellaneous Expenses,5034,The JJEffect - School inputs across Chorley and South Ribble schools.  PCC Funding,26/01/2022,0164106,"7,900.00",Revenue,Byron Highton,82939,,
Chorley Borough Council,http://statistics.data.gov.uk/id/local-authority/30UE,Service Management & Support,1009,Customer & Digital,Vehicles and Plant Maintenance,30045,Direct Transport Costs,5016,"As per pro forma, WIP No 26612",19/01/2022,0164026,351.44,Revenue,C P Davidson & Sons Ltd,21093,,
Chorley Borough Council,http://statistics.data.gov.uk/id/local-authority/30UE,Homelessness,1075,Communities,Professional Fees,40063,Services,5027,"Quarter 3 (Oct-Dec 2021) Accommodation Finding and Resettlement Support Service, Chorley Council Housing Solutions Team",19/01/2022,0163641,"7,286.50",Revenue,Calico Enterprise,73338,,
Chorley Borough Council,http://statistics.data.gov.uk/id/local-authority/30UE,Central Support Services,1009,Customer & Digital,Emergency Call Out System,40096,Communication and Computing,5028,Out of Hours call charges 20/21,26/01/2022,0164183,298.92,Revenue,CallCare Ltd,20257,,
Chorley Borough Council,http://statistics.data.gov.uk/id/local-authority/30UE,Central Support Services,1009,Communities,Tools & Equipment - Maintenance,40005,"Equipment, Furniture & Materia",5023,UKAS calibration of sound level meter and sound calibrator plus return postage. Your ref CHO200 - Ref: 365,12/01/2022,0162911,498.00,Revenue,Campbell Associates,21084,,
Chorley Borough Council,http://statistics.data.gov.uk/id/local-authority/30UE,Central Support Services,1009,Communities,Tools & Equipment - Maintenance,40005,"Equipment, Furniture & Materia",5023,Calibration of Nor 140 sound level meter and Nor 1251 sound calibrator to UKAS standards with return postage,12/01/2022,0163727,498.00,Revenue,Campbell Associates,21084,,
Chorley Borough Council,http://statistics.data.gov.uk/id/local-authority/30UE,Building Control,1090,Customer & Digital,Agency Staff,13000,Direct Employee Expenses,5001,Agency fees for NAME REDACTED 6 months contract,12/01/2022,0162603,"1,768.00",Revenue,Carrington West Ltd,83124,,
Chorley Borough Council,http://statistics.data.gov.uk/id/local-authority/30UE,Central Support Services,1009,Policy & Governance,Agency Staff,13000,Direct Employee Expenses,5001,NAME REDACTED,12/01/2022,0163737,"2,100.00",Revenue,Castlefield Recruitment Limited,80454,,
Chorley Borough Council,http://statistics.data.gov.uk/id/local-authority/30UE,Culture & Heritage,1036,Policy & Governance,Fixtures & Fittings - Purchase,20027,Fixtures and Fittings,5010,English Provincial School 18th Century Portrait of a girl,19/01/2022,0163964,800.00,Revenue,Cheffins,84241,,
Chorley Borough Council,http://statistics.data.gov.uk/id/local-authority/30UE,Culture & Heritage,1036,Policy & Governance,Fixtures & Fittings - Purchase,20027,Fixtures and Fittings,5010,Auction Premium,19/01/2022,0163964,196.00,Revenue,Cheffins,84241,,
Chorley Borough Council,http://statistics.data.gov.uk/id/local-authority/30UE,Parking Services,1066,Commercial & Property,External Contractors,50008,Private Contractors,5042,Annual Capital fixed costs distribution based on 1318 pcns (06.09.20  05.09.21),12/01/2022,0163638,999.66,Revenue,Chipside Ltd,22063,,
Chorley Borough Council,http://statistics.data.gov.uk/id/local-authority/30UE,Parking Services,1066,Commercial & Property,External Contractors,50008,Private Contractors,5042,"Processing 075, 076, 077, 079, 080, 085, 086, MIPERMIT FEES,CHARGE, ELECPAYBANKFEE, Processing 010, 011",26/01/2022,0163700,406.23,Revenue,Chipside Ltd,22063,,
Chorley Borough Council,http://statistics.data.gov.uk/id/local-authority/30UE,Parking Services,1066,Commercial & Property,External Contractors,50008,Private Contractors,5042,"Processing 074 - Provision of Notice. Processing Services for period 01.04.2021-31.03.2022, Automated Telephone and Internet",26/01/2022,0164149,287.71,Revenue,Chipside Ltd,22063,,
Chorley Borough Council,http://statistics.data.gov.uk/id/local-authority/30UE,Regulatory Services,1048,Customer & Digital,Taxi Testing & Vehicle Safety Report,40234,Services,5027,nov 21,19/01/2022,0163961,"1,371.25",Revenue,Chorley Autocare Ltd,17110,,
Chorley Borough Council,http://statistics.data.gov.uk/id/local-authority/30UE,Regulatory Services,1048,Customer & Digital,Taxi Testing & Vehicle Safety Report,40234,Services,5027,tax test,19/01/2022,0163961,213.75,Revenue,Chorley Autocare Ltd,17110,,
Chorley Borough Council,http://statistics.data.gov.uk/id/local-authority/30UE,Regulatory Services,1048,Customer & Digital,Taxi Testing & Vehicle Safety Report,40234,Services,5027,mot,26/01/2022,0164396,"1,151.85",Revenue,Chorley Autocare Ltd,17110,,
Chorley Borough Council,http://statistics.data.gov.uk/id/local-authority/30UE,Regulatory Services,1048,Customer & Digital,Taxi Testing & Vehicle Safety Report,40234,Services,5027,taxi test,26/01/2022,0164396,179.55,Revenue,Chorley Autocare Ltd,17110,,
Chorley Borough Council,http://statistics.data.gov.uk/id/local-authority/30UE,Homelessness,1075,Communities,Miscellaneous Expenses,40200,Miscellaneous Expenses,5034,Petty cash,20/01/2022,0164162,300.00,Revenue,Chorley BC Petty Cash,16301,,
Chorley Borough Council,http://statistics.data.gov.uk/id/local-authority/30UE,Service Management & Support,1009,Customer & Digital,Vehicles and Plant Maintenance,30045,Direct Transport Costs,5016,"YM70 GXB, Call out, New tyre, Disposal",12/01/2022,0163207,277.20,Revenue,Chorley Tyres,53719,,
Chorley Borough Council,http://statistics.data.gov.uk/id/local-authority/30UE,Community Development,1097,Communities,Core Funding Grants,40133,Grants and Subscriptions,5031,Core Funding Grant for delivery of service to support vulnerable adults (women),19/01/2022,0163462,"7,500.00",Revenue,Chorley Womens Centre,17036,,
Chorley Borough Council,http://statistics.data.gov.uk/id/local-authority/30UE,Corporate Management,1008,Communities,External Contractor,40198,Miscellaneous Expenses,5034,Youth Zone Management Fee for Youth Hub Project,05/01/2022,0163352,"8,000.00",Revenue,Chorley Youth Zone,77339,,
Chorley Borough Council,http://statistics.data.gov.uk/id/local-authority/30UE,Central Support Services,1009,Policy & Governance,Computer Software-Additional,40102,Communication and Computing,5028,"UI (User Interface) for 3 x Additional Companies: Licence, Implementation, Annual Maintenance for New UI",19/01/2022,0162400,"1,750.00",Revenue,Civica UK Limited,17463,,
Chorley Borough Council,http://statistics.data.gov.uk/id/local-authority/30UE,Homelessness,1075,Communities,Computer Software-Purchase,40100,Communication and Computing,5028,Upgrade of the Select Move Abritas system to V14 as defined in the �Select Move - V14 Abritas Upgrade Scope� document.,19/01/2022,0162579,"9,204.47",Revenue,Civica UK Limited,17463,,
Chorley Borough Council,http://statistics.data.gov.uk/id/local-authority/30UE,Central Support Services,1009,Policy & Governance,Computer Software-Additional,40102,Communication and Computing,5028,"UI (User Interface) for 3 x Additional Companies: Licence, Implementation, Annual Maintenance for New UI",19/01/2022,0162586,"16,880.00",Revenue,Civica UK Limited,17463,,
Chorley Borough Council,http://statistics.data.gov.uk/id/local-authority/30UE,Central Support Services,1009,Customer & Digital,Computer Software-Additional,40102,Communication and Computing,5028,Annual support and maintenance. Hosting. Restricted app access. Professional services (Chorley only) for the transfer of data,26/01/2022,0163768,"10,530.00",Revenue,Civica UK Limited,17463,,
Chorley Borough Council,http://statistics.data.gov.uk/id/local-authority/30UE,Central Support Services,1009,Commercial & Property,General Repairs - Reactive,20004,Repairs Maintenance & Alts,5005,Union St - Blanket order reactive repairs,05/01/2022,0163440,325.13,Revenue,Classic Lifts Limited,20897,,
Chorley Borough Council,http://statistics.data.gov.uk/id/local-authority/30UE,Central Support Services,1009,Commercial & Property,General Repairs - Reactive,20004,Repairs Maintenance & Alts,5005,Town Hall - Blanket order for reactive repairs,12/01/2022,0163500,304.09,Revenue,Classic Lifts Limited,20897,,
Chorley Borough Council,http://statistics.data.gov.uk/id/local-authority/30UE,Central Support Services,1009,Commercial & Property,General Repairs - Reactive,20004,Repairs Maintenance & Alts,5005,Town Hall - Blanket order for reactive repairs,05/01/2022,0163501,461.36,Revenue,Classic Lifts Limited,20897,,
Chorley Borough Council,http://statistics.data.gov.uk/id/local-authority/30UE,Central Support Services,1009,Commercial & Property,General Repairs - Reactive,20004,Repairs Maintenance & Alts,5005,Town Hall - Blanket order for reactive repairs,12/01/2022,0163503,296.36,Revenue,Classic Lifts Limited,20897,,
Chorley Borough Council,http://statistics.data.gov.uk/id/local-authority/30UE,Capital,Capital,Communities,Main Contractor,03007,Capital Expenditure,Capital,"Path creation to enhance amenity open space in Clayton-le-Woods, Carr Brook.",26/01/2022,0164299,"3,109.73",Capital,Conservation Contracts North West,20520,,
Chorley Borough Council,http://statistics.data.gov.uk/id/local-authority/30UE,Central Support Services,1009,Customer & Digital,Computer Equipment-Purchase,40098,Communication and Computing,5028,Camera 15 Wireless to Fibre Conversion,05/01/2022,0162625,"2,387.97",Revenue,Core Integrated Solutions,77043,,
Chorley Borough Council,http://statistics.data.gov.uk/id/local-authority/30UE,Central Support Services,1009,Customer & Digital,Computer Equipment-Purchase,40098,Communication and Computing,5028,Primrose Gardens and Market Street Column Works,05/01/2022,0162626,"3,502.77",Revenue,Core Integrated Solutions,77043,,
Chorley Borough Council,http://statistics.data.gov.uk/id/local-authority/30UE,Central Support Services,1009,Commercial & Property,General Repairs - Reactive,20004,Repairs Maintenance & Alts,5005,commercial  - reactive repairs,12/01/2022,0158266,702.50,Revenue,Corlett Electrical Eng Co Ltd,16271,,
Chorley Borough Council,http://statistics.data.gov.uk/id/local-authority/30UE,Central Support Services,1009,Commercial & Property,General Repairs - Reactive,20004,Repairs Maintenance & Alts,5005,Community Centres  - reactive repair works,05/01/2022,0163102,"1,444.19",Revenue,Corlett Electrical Eng Co Ltd,16271,,
Chorley Borough Council,http://statistics.data.gov.uk/id/local-authority/30UE,Tourism,1039,Policy & Governance,Exhibitions & Special Events,40158,Miscellaneous Expenses,5034,Flower Show Work,05/01/2022,0163825,"1,687.24",Revenue,Corlett Electrical Eng Co Ltd,16271,,
Chorley Borough Council,http://statistics.data.gov.uk/id/local-authority/30UE,Central Support Services,1009,Commercial & Property,Gas,20014,Energy Costs,5006,nov-dec21,05/01/2022,0163871,296.45,Revenue,Corona Energy Retail 2 Ltd,67249,,
Chorley Borough Council,http://statistics.data.gov.uk/id/local-authority/30UE,Open Spaces,1038,Commercial & Property,Gas,20014,Energy Costs,5006,nov-dec21,05/01/2022,0163874,851.87,Revenue,Corona Energy Retail 2 Ltd,67249,,
Chorley Borough Council,http://statistics.data.gov.uk/id/local-authority/30UE,Homelessness,1075,Commercial & Property,Gas,20014,Energy Costs,5006,nov-dec21,05/01/2022,0163877,"1,012.81",Revenue,Corona Energy Retail 2 Ltd,67249,,
Chorley Borough Council,http://statistics.data.gov.uk/id/local-authority/30UE,Recreation & Sport,1037,Commercial & Property,Gas,20014,Energy Costs,5006,nov-dec21,05/01/2022,0163878,682.99,Revenue,Corona Energy Retail 2 Ltd,67249,,
Chorley Borough Council,http://statistics.data.gov.uk/id/local-authority/30UE,Central Support Services,1009,Commercial & Property,Gas,20014,Energy Costs,5006,nov-dec21,05/01/2022,0163879,877.57,Revenue,Corona Energy Retail 2 Ltd,67249,,
Chorley Borough Council,http://statistics.data.gov.uk/id/local-authority/30UE,Central Support Services,1009,Commercial & Property,Gas,20014,Energy Costs,5006,nov-dec21,05/01/2022,0163881,"1,177.85",Revenue,Corona Energy Retail 2 Ltd,67249,,
Chorley Borough Council,http://statistics.data.gov.uk/id/local-authority/30UE,Recreation & Sport,1037,Commercial & Property,Gas,20014,Energy Costs,5006,nov-dec21,05/01/2022,0163884,299.66,Revenue,Corona Energy Retail 2 Ltd,67249,,
Chorley Borough Council,http://statistics.data.gov.uk/id/local-authority/30UE,Capital,Capital,Commercial & Property,Main Contractor,03007,Capital Expenditure,Capital,"Clayton Green SC - 2no. Solid Back courts, Uplift, dispose of existing Maple, Supply, install WSF approved squash flooring",19/01/2022,0164091,"12,850.00",Capital,CourtCare UK Limited,83894,,
Chorley Borough Council,http://statistics.data.gov.uk/id/local-authority/30UE,Corporate Management,1008,Policy & Governance,Miscellaneous Expenses,40200,Miscellaneous Expenses,5034,Hire of 8 portable hand wash stations from 18th October to 14th November 2021.,12/01/2022,0163720,"1,440.00",Revenue,Cyril Unsworth Ltd,78887,,
Chorley Borough Council,http://statistics.data.gov.uk/id/local-authority/30UE,Corporate Management,1008,Policy & Governance,Miscellaneous Expenses,40200,Miscellaneous Expenses,5034,Hire of 8 portable hand wash stations from 13th Dec 2021 to 9th Jan 2022.Invoice 3319.,26/01/2022,0164233,"1,440.00",Revenue,Cyril Unsworth Ltd,78887,,
Chorley Borough Council,http://statistics.data.gov.uk/id/local-authority/30UE,Control Accounts,Control,Policy & Governance,General Balances,00100,Balance Sheet,Balance,Child Maintenance,19/01/2022,0164080,252.08,Revenue,Department for Work and Pensions,83955,,
Chorley Borough Council,http://statistics.data.gov.uk/id/local-authority/30UE,Central Support Services,1009,Communities,Miscellaneous Expenses,40200,Miscellaneous Expenses,5034,Additional Day - Regulatory Skills Training,26/01/2022,0164071,600.00,Revenue,Duncan Greene,78557,,
Chorley Borough Council,http://statistics.data.gov.uk/id/local-authority/30UE,Culture & Heritage,1036,Policy & Governance,Souvenirs,40033,"Equipment, Furniture & Materia",5023,"Books delivered to Astley Hall gift shop 28/11/21:Wild Child x3, Secret Forest x3, Into the forrest x2, I-spy Nature x3",26/01/2022,0164245,868.42,Revenue,Ebb and Flo Bookshop,67239,,
Chorley Borough Council,http://statistics.data.gov.uk/id/local-authority/30UE,Central Support Services,1009,Commercial & Property,General Repairs - Reactive,20004,Repairs Maintenance & Alts,5005,"QU-0041, Westway Sports Centre, Supply and fitting of anti-vandal shroud to padlock and slide bar",05/01/2022,0163786,"1,200.00",Revenue,Edwards Wrought Iron Ltd,77654,,
Chorley Borough Council,http://statistics.data.gov.uk/id/local-authority/30UE,Central Support Services,1009,Commercial & Property,General Repairs - Reactive,20004,Repairs Maintenance & Alts,5005,"Clayton Green, replace the rusted checker plate as per quote",05/01/2022,0163788,380.00,Revenue,Edwards Wrought Iron Ltd,77654,,
Chorley Borough Council,http://statistics.data.gov.uk/id/local-authority/30UE,Recreation & Sport,1037,Commercial & Property,General Repairs - Reactive,20004,Repairs Maintenance & Alts,5005,"bb, inv100896, TF13066, Extend front office desk",12/01/2022,0160782,329.54,Revenue,EFT Construction,78195,,
Chorley Borough Council,http://statistics.data.gov.uk/id/local-authority/30UE,Central Support Services,1009,Commercial & Property,General Repairs - Reactive,20004,Repairs Maintenance & Alts,5005,Town Hall - reactive repair works,12/01/2022,0161976,277.20,Revenue,EFT Construction,78195,,
Chorley Borough Council,http://statistics.data.gov.uk/id/local-authority/30UE,Central Support Services,1009,Commercial & Property,General Repairs - Reactive,20004,Repairs Maintenance & Alts,5005,Westway - reactive repair works,12/01/2022,0161978,268.59,Revenue,EFT Construction,78195,,
Chorley Borough Council,http://statistics.data.gov.uk/id/local-authority/30UE,Business Support,1095,Commercial & Property,General Repairs - Reactive,20004,Repairs Maintenance & Alts,5005,Strawberry Fields - reactive repair works,12/01/2022,0162310,495.00,Revenue,EFT Construction,78195,,
Chorley Borough Council,http://statistics.data.gov.uk/id/local-authority/30UE,Central Support Services,1009,Commercial & Property,General Repairs - Reactive,20004,Repairs Maintenance & Alts,5005,commercial properties - reactive repair works,12/01/2022,0162854,646.50,Revenue,EFT Construction,78195,,
Chorley Borough Council,http://statistics.data.gov.uk/id/local-authority/30UE,Business Support,1095,Commercial & Property,General Repairs - Reactive,20004,Repairs Maintenance & Alts,5005,Strawberry Fields - reactive repair works,12/01/2022,0162869,454.18,Revenue,EFT Construction,78195,,
Chorley Borough Council,http://statistics.data.gov.uk/id/local-authority/30UE,Business Support,1095,Commercial & Property,General Repairs - Reactive,20004,Repairs Maintenance & Alts,5005,Market Walk - reactive repair works,12/01/2022,0162870,366.02,Revenue,EFT Construction,78195,,
Chorley Borough Council,http://statistics.data.gov.uk/id/local-authority/30UE,Central Support Services,1009,Commercial & Property,General Repairs - Reactive,20004,Repairs Maintenance & Alts,5005,Town Hall - reactive repair works,12/01/2022,0162874,787.34,Revenue,EFT Construction,78195,,
Chorley Borough Council,http://statistics.data.gov.uk/id/local-authority/30UE,Central Support Services,1009,Commercial & Property,General Repairs - Reactive,20004,Repairs Maintenance & Alts,5005,Residential Housing - reactive repair works,12/01/2022,0163428,388.04,Revenue,EFT Construction,78195,,
Chorley Borough Council,http://statistics.data.gov.uk/id/local-authority/30UE,Central Support Services,1009,Commercial & Property,General Repairs - Reactive,20004,Repairs Maintenance & Alts,5005,Chorley Market - reactive repair works,12/01/2022,0163525,307.49,Revenue,EFT Construction,78195,,
Chorley Borough Council,http://statistics.data.gov.uk/id/local-authority/30UE,Central Support Services,1009,Commercial & Property,General Repairs - Reactive,20004,Repairs Maintenance & Alts,5005,Cotswold House - reactive repair works,12/01/2022,0163528,453.28,Revenue,EFT Construction,78195,,
Chorley Borough Council,http://statistics.data.gov.uk/id/local-authority/30UE,Central Support Services,1009,Commercial & Property,General Repairs - Reactive,20004,Repairs Maintenance & Alts,5005,Primrose Gardens - reactive repair works,12/01/2022,0163529,607.42,Revenue,EFT Construction,78195,,
Chorley Borough Council,http://statistics.data.gov.uk/id/local-authority/30UE,Central Support Services,1009,Commercial & Property,General Repairs - Reactive,20004,Repairs Maintenance & Alts,5005,Community Centres - reactive repair works,12/01/2022,0163531,342.82,Revenue,EFT Construction,78195,,
Chorley Borough Council,http://statistics.data.gov.uk/id/local-authority/30UE,Business Support,1095,Commercial & Property,Planned Maintenance,20006,Repairs Maintenance & Alts,5005,"Primrose Garden, Proposal from our Specialist Contractor to provide automatic controls for gate",26/01/2022,0164277,"3,899.00",Revenue,EFT Construction,78195,,
Chorley Borough Council,http://statistics.data.gov.uk/id/local-authority/30UE,Business Support,1095,Commercial & Property,Planned Maintenance,20006,Repairs Maintenance & Alts,5005,"Primrose Gardens, To excavate trench in border, supply and lay 2no 50mm flexible ducts including draw rope on sand bed",26/01/2022,0164278,"3,020.00",Revenue,EFT Construction,78195,,
Chorley Borough Council,http://statistics.data.gov.uk/id/local-authority/30UE,Capital,Capital,Commercial & Property,Main Contractor,03007,Capital Expenditure,Capital,"ADDRESS REDACTED Bathroom Refurbishment, Remove WC, WHB and Bath, Ditto Shower fitting, Blank off H&C W supplies",26/01/2022,0164280,"10,626.68",Capital,EFT Construction,78195,,
Chorley Borough Council,http://statistics.data.gov.uk/id/local-authority/30UE,Capital,Capital,Commercial & Property,Main Contractor,03007,Capital Expenditure,Capital,"ADDRESS REDACTED, Strip out kitchen and dispose of all materials, knock off tiles to walls, Remove shower screen and base",26/01/2022,0164281,"3,500.00",Capital,EFT Construction,78195,,
Chorley Borough Council,http://statistics.data.gov.uk/id/local-authority/30UE,Central Support Services,1009,Commercial & Property,Survey Expenses,40069,Services,5027,Phase I and II Geoenvironmental Site Assessment,05/01/2022,0161932,250.00,Revenue,Environmental Engineering Partnership Limited,78457,,
Chorley Borough Council,http://statistics.data.gov.uk/id/local-authority/30UE,Business Support,1095,Commercial & Property,Internet Charges,40104,Communication and Computing,5028,"For all regular, monthly invoices to cover Operate Growth, Connect Growth and Public IP & Call Charges",26/01/2022,0164108,252.52,Revenue,Essensys Ltd,77836,,
Chorley Borough Council,http://statistics.data.gov.uk/id/local-authority/30UE,Business Support,1095,Commercial & Property,Internet Charges,40104,Communication and Computing,5028,"For all regular, monthly invoices to cover Operate Growth, Connect Growth and Public IP & Call Charges",26/01/2022,0164110,"3,810.00",Revenue,Essensys Ltd,77836,,
Chorley Borough Council,http://statistics.data.gov.uk/id/local-authority/30UE,Service Management & Support,1009,Customer & Digital,Supplies-Grounds Maintenance,40025,"Equipment, Furniture & Materia",5023,Supply 2000 Narcissus Tete a Tete,05/01/2022,0163721,340.00,Revenue,Everglades Nurseries Ltd,20202,,
Chorley Borough Council,http://statistics.data.gov.uk/id/local-authority/30UE,Service Management & Support,1009,Customer & Digital,Hire of Plant,40001,"Equipment, Furniture & Materia",5023,Hire of a Leaf Sucker for 2 weeks. Deliver to Bengal St. W/C 29th Nov,05/01/2022,0163766,600.00,Revenue,F R Sharrock Ltd,18091,,
Chorley Borough Council,http://statistics.data.gov.uk/id/local-authority/30UE,Central Support Services,1009,Customer & Digital,Unitary Payment(S),50009,Private Contractors,5042,Provision of waste and recycling collection services 2021-2022,12/01/2022,0163185,"186,126.14",Revenue,FCC Environment Services (UK) Limited,77903,,
Chorley Borough Council,http://statistics.data.gov.uk/id/local-authority/30UE,Central Support Services,1009,Commercial & Property,Planned Maintenance,20006,Repairs Maintenance & Alts,5005,"Westway Sports Hub, Non - intrusive Fire Risk Assessment",26/01/2022,0164284,550.00,Revenue,Fire and Risk Management Support Services Ltd,77505,,
Chorley Borough Council,http://statistics.data.gov.uk/id/local-authority/30UE,Parking Services,1066,Commercial & Property,Fixtures & Fittings - Purchase,20027,Fixtures and Fittings,5010,Installation of P&d machine including civil works,05/01/2022,0163763,585.00,Revenue,Flow Bird Smart City UK Ltd,16279,,
Chorley Borough Council,http://statistics.data.gov.uk/id/local-authority/30UE,Central Support Services,1009,Policy & Governance,Processional Routes,40177,Miscellaneous Expenses,5034,Fee for playing at Chorley's Remembrance Sunday Service at the Cenotaph in Astley Park on 14th November 2021.,12/01/2022,0162081,650.00,Revenue,Formby Band,77694,,
Chorley Borough Council,http://statistics.data.gov.uk/id/local-authority/30UE,Capital,Capital,Commercial & Property,Other Capital Related Fees,03024,Capital Expenditure,Capital,Installation of shutter supplies as per quotation (to Gosling Consulting Services) retrospective order as works already carried out,12/01/2022,0163904,"1,397.60",Capital,Fox Contractors Limited,81125,,
Chorley Borough Council,http://statistics.data.gov.uk/id/local-authority/30UE,Homelessness,1075,Commercial & Property,Furniture - Purchase,40012,"Equipment, Furniture & Materia",5023,YK26K Table x1 @ 134.60,26/01/2022,0156669,134.60,Revenue,Furniture Resource Centre Ltd,22085,,
Chorley Borough Council,http://statistics.data.gov.uk/id/local-authority/30UE,Homelessness,1075,Commercial & Property,Furniture - Purchase,40012,"Equipment, Furniture & Materia",5023,271K York Wooden Dining Chair x4 @ 89.23,26/01/2022,0156669,356.92,Revenue,Furniture Resource Centre Ltd,22085,,
Chorley Borough Council,http://statistics.data.gov.uk/id/local-authority/30UE,Homelessness,1075,Commercial & Property,Furniture - Purchase,40012,"Equipment, Furniture & Materia",5023,credit due for wardrobe,26/01/2022,0156669,430.50,Revenue,Furniture Resource Centre Ltd,22085,,
Chorley Borough Council,http://statistics.data.gov.uk/id/local-authority/30UE,Service Management & Support,1009,Customer & Digital,Vehicles and Plant Maintenance,30045,Direct Transport Costs,5016,"FL66 OSX, Invoice Number SI-3877",19/01/2022,0164025,568.00,Revenue,G & S Auto Electrical Services,16323,,
Chorley Borough Council,http://statistics.data.gov.uk/id/local-authority/30UE,Homelessness,1075,Communities,Agency Staff,13000,Direct Employee Expenses,5001,Payment for agency staff cost. employee in situ covering NAME REDACTED,12/01/2022,0163817,"1,196.25",Revenue,G2 Recruitment Solutions,84173,,
Chorley Borough Council,http://statistics.data.gov.uk/id/local-authority/30UE,Homelessness,1075,Communities,Agency Staff,13000,Direct Employee Expenses,5001,Agency personnel in situ as NAME REDACTED,26/01/2022,0164184,"2,376.00",Revenue,G2 Recruitment Solutions,84173,,
Chorley Borough Council,http://statistics.data.gov.uk/id/local-authority/30UE,Homelessness,1075,Communities,Agency Staff,13000,Direct Employee Expenses,5001,Agency personnel in situ as NAME REDACTED,26/01/2022,0164240,"1,188.00",Revenue,G2 Recruitment Solutions,84173,,
Chorley Borough Council,http://statistics.data.gov.uk/id/local-authority/30UE,Homelessness,1075,Communities,Agency Staff,13000,Direct Employee Expenses,5001,Agency personnel in situ as NAME REDACTED,26/01/2022,0164241,"1,089.00",Revenue,G2 Recruitment Solutions,84173,,
Chorley Borough Council,http://statistics.data.gov.uk/id/local-authority/30UE,Planning Policy,1092,Policy & Governance,Legal Fees,40171,Miscellaneous Expenses,5034,LEGAL ADVICE REGARDING CHORLEY LODGE DUXBURY,26/01/2022,0163828,"2,025.00",Revenue,Geraint Wheatley,84140,,
Chorley Borough Council,http://statistics.data.gov.uk/id/local-authority/30UE,Central Support Services,1009,Commercial & Property,Consultants` Fees,40077,Services,5027,Consultants Fees - Bengal St,19/01/2022,0164000,325.00,Revenue,Gosling Consulting Limited,78380,,
Chorley Borough Council,http://statistics.data.gov.uk/id/local-authority/30UE,Central Support Services,1009,Commercial & Property,Consultants` Fees,40077,Services,5027,Consultants Fees - Tatton,19/01/2022,0164001,"1,381.25",Revenue,Gosling Consulting Limited,78380,,
Chorley Borough Council,http://statistics.data.gov.uk/id/local-authority/30UE,Central Support Services,1009,Commercial & Property,Consultants` Fees,40077,Services,5027,Consultants Fees - Alker Lane,19/01/2022,0164002,568.75,Revenue,Gosling Consulting Limited,78380,,
Chorley Borough Council,http://statistics.data.gov.uk/id/local-authority/30UE,Corporate Management,1008,Policy & Governance,External Audit,40064,Services,5027,2021-22 Audit,19/01/2022,0163465,"9,461.50",Revenue,Grant Thornton UK LLP,57322,,
Chorley Borough Council,http://statistics.data.gov.uk/id/local-authority/30UE,Central Support Services,1009,Policy & Governance,Professional Fees,40063,Services,5027,FAO NAME REDACTED Homes England Compliance Audits,26/01/2022,0163568,"5,000.00",Revenue,Grant Thornton UK LLP,57322,,
Chorley Borough Council,http://statistics.data.gov.uk/id/local-authority/30UE,Corporate Management,1008,Commercial & Property,Publicity - Advertising,40157,Miscellaneous Expenses,5034,Social media for Market Walk SHopping Centre Chorley. July 2021 - March 2022 @500 Per month Total 9 months 4500,26/01/2022,0163813,500.00,Revenue,Gravity,77837,,
Chorley Borough Council,http://statistics.data.gov.uk/id/local-authority/30UE,Capital,Capital,Communities,Main Contractor,03007,Capital Expenditure,Capital,"Refurbishment of Fairview Play Area, Highfield Road, Adlington. Sand carpet, new kompan springy as per quote.",05/01/2022,0163075,"15,000.00",Capital,Groundwork and Leisure Services Ltd,83841,,
Chorley Borough Council,http://statistics.data.gov.uk/id/local-authority/30UE,Capital,Capital,Communities,Main Contractor,03007,Capital Expenditure,Capital,"Refurbishment of Fairview Play Area, Highfield Road, Adlington. Sand carpet, new kompan springy as per quote.",12/01/2022,0163915,780.00,Capital,Groundwork and Leisure Services Ltd,83841,,
Chorley Borough Council,http://statistics.data.gov.uk/id/local-authority/30UE,Corporate Management,1008,Policy & Governance,Miscellaneous Expenses,40200,Miscellaneous Expenses,5034,Hire of 8 mobile hand wash sinks from 1st to 31st December 2021. Contract number: 025818,12/01/2022,0163954,"1,440.00",Revenue,Hallmark Catering,78575,,
Chorley Borough Council,http://statistics.data.gov.uk/id/local-authority/30UE,Central Support Services,1009,Policy & Governance,Exhibitions & Special Events,40158,Miscellaneous Expenses,5034,Supply of fuel for the ice rink and Betty's Tipi heaters for the Winter Wonderland in Chorley.,12/01/2022,0163809,"1,698.97",Revenue,Harrison Oils Ltd,76429,,
Chorley Borough Council,http://statistics.data.gov.uk/id/local-authority/30UE,Central Support Services,1009,Policy & Governance,Exhibitions & Special Events,40158,Miscellaneous Expenses,5034,Supply of fuel for the ice rink and Betty's Tipi heaters for the Winter Wonderland in Chorley.,19/01/2022,0163914,"1,506.54",Revenue,Harrison Oils Ltd,76429,,
Chorley Borough Council,http://statistics.data.gov.uk/id/local-authority/30UE,Central Support Services,1009,Policy & Governance,Exhibitions & Special Events,40158,Miscellaneous Expenses,5034,Supply of fuel for the ice rink and Betty's Tipi heaters for the Winter Wonderland in Chorley.,19/01/2022,0163948,"1,643.30",Revenue,Harrison Oils Ltd,76429,,
Chorley Borough Council,http://statistics.data.gov.uk/id/local-authority/30UE,Central Support Services,1009,Policy & Governance,Exhibitions & Special Events,40158,Miscellaneous Expenses,5034,Supply of fuel for the ice rink and Betty's Tipi heaters for the Winter Wonderland in Chorley.,19/01/2022,0163950,750.90,Revenue,Harrison Oils Ltd,76429,,
Chorley Borough Council,http://statistics.data.gov.uk/id/local-authority/30UE,Central Support Services,1009,Policy & Governance,Exhibitions & Special Events,40158,Miscellaneous Expenses,5034,Supply of fuel for the ice rink and Betty's Tipi heaters for the Winter Wonderland in Chorley.,26/01/2022,0164072,"1,367.93",Revenue,Harrison Oils Ltd,76429,,
Chorley Borough Council,http://statistics.data.gov.uk/id/local-authority/30UE,Planning Policy,1092,Communities,General Subscriptions,40146,Grants and Subscriptions,5031,Planning Resources Subscription,26/01/2022,0164096,855.00,Revenue,Haymarket Publishing Services Ltd,16347,,
Chorley Borough Council,http://statistics.data.gov.uk/id/local-authority/30UE,Central Support Services,1009,Commercial & Property,General Repairs - Reactive,20004,Repairs Maintenance & Alts,5005,G7 decorating at the Town Hall Internal and External,26/01/2022,0164181,935.00,Revenue,Henry Nightingale & Son,17923,,
Chorley Borough Council,http://statistics.data.gov.uk/id/local-authority/30UE,Central Support Services,1009,Customer & Digital,Computer Software-Purchase,40100,Communication and Computing,5028,"Access control hardware, Door installation and configuration (including PM) Time recording hardware, Professional Services",12/01/2022,0163860,"33,581.00",Revenue,Hfx Ltd,17164,,
Chorley Borough Council,http://statistics.data.gov.uk/id/local-authority/30UE,Central Support Services,1009,Policy & Governance,Miscellaneous Expenses,40200,Miscellaneous Expenses,5034,lights switch on,05/01/2022,0163779,750.00,Revenue,Holly Bradshaw,83972,,
Chorley Borough Council,http://statistics.data.gov.uk/id/local-authority/30UE,Community Development,1097,Communities,Core Funding Grants,40133,Grants and Subscriptions,5031,Core Funding Grant for provision of Family support services - Second payment subject to successful completion,12/01/2022,0163949,"11,000.00",Revenue,Home-Start Central Lancashire Ltd,20585,,
Chorley Borough Council,http://statistics.data.gov.uk/id/local-authority/30UE,Corporate Management,1008,Customer & Digital,Miscellaneous Expenses,40200,Miscellaneous Expenses,5034,Exchange 2016 mailbox Server,05/01/2022,0163547,"4,550.00",Revenue,Hybrit LLP,77925,,
Chorley Borough Council,http://statistics.data.gov.uk/id/local-authority/30UE,Central Support Services,1009,Customer & Digital,Consultants` Fees,40077,Services,5027,Chorley Council - Block Hours Service Desk,26/01/2022,0163562,"5,500.00",Revenue,Hybrit LLP,77925,,
Chorley Borough Council,http://statistics.data.gov.uk/id/local-authority/30UE,Corporate Management,1008,Policy & Governance,Other Fees,40212,Miscellaneous Expenses,5034,Subsidy for the provision of a meals on wheels service in Chorley up to 2 January 2022,26/01/2022,0164031,"1,973.96",Revenue,I Care GB Ltd,77247,,
Chorley Borough Council,http://statistics.data.gov.uk/id/local-authority/30UE,Elections,1012,Policy & Governance,Computer - Support Services,40111,Communication and Computing,5028,"Annual canvass 2021 - as per your quote reference - IVR Platinum Service, IVR set up, Data re-load, Print & Send, set up fee",12/01/2022,0163733,267.79,Revenue,IDOX Software Limited,17542,,
Chorley Borough Council,http://statistics.data.gov.uk/id/local-authority/30UE,Central Support Services,1009,Policy & Governance,Refuse Collection,20037,Cleaning and Domestic Supplies,5012,Provision of services to Council sites.,26/01/2022,0164104,"2,404.80",Revenue,Initial,78488,,
Chorley Borough Council,http://statistics.data.gov.uk/id/local-authority/30UE,Central Support Services,1009,Policy & Governance,Refuse Collection,20037,Cleaning and Domestic Supplies,5012,Provision of services to Council sites.,26/01/2022,0164107,"2,268.69",Revenue,Initial,78488,,
Chorley Borough Council,http://statistics.data.gov.uk/id/local-authority/30UE,Control Accounts,Control,System,Manual Control Account,00001,Balance Sheet,Balance,,12/01/2022,0163557,"1,410.33",Revenue,Inland Revenue,17445,,
Chorley Borough Council,http://statistics.data.gov.uk/id/local-authority/30UE,Central Support Services,1009,Communities,External Contractor,40198,Miscellaneous Expenses,5034,Payment for consultancy work,26/01/2022,0164139,"1,305.00",Revenue,J L Nelson Consultancy Ltd,84162,,
Chorley Borough Council,http://statistics.data.gov.uk/id/local-authority/30UE,Community Development,1097,Commercial & Property,Rent/Hire Of Premises,20017,Premises Rents,5007,Annual insurance for 37-39 market st amendment due to incorrect fee stated,12/01/2022,0162972,714.09,Revenue,J R Keys,17124,,
Chorley Borough Council,http://statistics.data.gov.uk/id/local-authority/30UE,Business Support,1095,Commercial & Property,Tools & Equipment - Purchase,40003,"Equipment, Furniture & Materia",5023,Washing machine and tumble dryer servicing for 12 months,12/01/2022,0163759,317.22,Revenue,JLA Total Care LTD,78420,,
Chorley Borough Council,http://statistics.data.gov.uk/id/local-authority/30UE,Service Management & Support,1009,Customer & Digital,Supplies-Grounds Maintenance,40025,"Equipment, Furniture & Materia",5023,22 x 4.2m x 6'' x 2'' plain wood,12/01/2022,0161585,"1,096.68",Revenue,John H Mayor & Sons Ltd,16635,,
Chorley Borough Council,http://statistics.data.gov.uk/id/local-authority/30UE,Central Support Services,1009,Commercial & Property,Main Contractor,03007,Capital Expenditure,Capital,Alker Lane Design & Build Contract,05/01/2022,0163674,"809,413.33",Revenue,John Turner Construction Group Limited,82376,,
Chorley Borough Council,http://statistics.data.gov.uk/id/local-authority/30UE,Capital,Capital,Commercial & Property,Main Contractor,03007,Capital Expenditure,Capital,"Site clearance, disposal, existing site materials relocation, provision of laying and compaction of selected fill or other works",12/01/2022,0163738,"14,962.00",Capital,John Wade Groundworks Ltd,76676,,
Chorley Borough Council,http://statistics.data.gov.uk/id/local-authority/30UE,Central Support Services,1009,Commercial & Property,General Repairs - Reactive,20004,Repairs Maintenance & Alts,5005,"Primrose Gardens, Lampost replacement of column, re-use the lantern",12/01/2022,0162629,750.00,Revenue,Jones Lighting Ltd,82417,,
Chorley Borough Council,http://statistics.data.gov.uk/id/local-authority/30UE,Development Control,1091,Customer & Digital,Statutory Notices,40160,Miscellaneous Expenses,5034,Planning Public Notices to appear in the Chorley Guardian April 2021 to March 2022,26/01/2022,0161262,"1,014.00",Revenue,JPI Media - Johnston Publishing Ltd,20072,,
Chorley Borough Council,http://statistics.data.gov.uk/id/local-authority/30UE,Development Control,1091,Customer & Digital,Statutory Notices,40160,Miscellaneous Expenses,5034,Planning Public Notices to appear in the Chorley Guardian April 2021 to March 2022,26/01/2022,0162518,263.64,Revenue,JPI Media - Johnston Publishing Ltd,20072,,
Chorley Borough Council,http://statistics.data.gov.uk/id/local-authority/30UE,Development Control,1091,Customer & Digital,Statutory Notices,40160,Miscellaneous Expenses,5034,Planning Public Notices to appear in the Chorley Guardian April 2021 to March 2022,26/01/2022,0163436,324.48,Revenue,JPI Media - Johnston Publishing Ltd,20072,,
Chorley Borough Council,http://statistics.data.gov.uk/id/local-authority/30UE,Central Support Services,1009,Policy & Governance,Processional Routes,40177,Miscellaneous Expenses,5034,Quarter Page Advert in Chorley Guardian,12/01/2022,0163938,490.29,Revenue,JPI Media - Johnston Publishing Ltd,20072,,
Chorley Borough Council,http://statistics.data.gov.uk/id/local-authority/30UE,Capital,Capital,Communities,Main Contractor,03007,Capital Expenditure,Capital,CCTV Drain Survey 440 + VAT,12/01/2022,0163844,440.00,Capital,JYM Partnership LLP,18179,,
Chorley Borough Council,http://statistics.data.gov.uk/id/local-authority/30UE,Control Accounts,Control,Commercial & Property,Manual Control Account,00001,Balance Sheet,Balance,,12/01/2022,0163903,550.03,Revenue,NAME REDACTED,84175,,
Chorley Borough Council,http://statistics.data.gov.uk/id/local-authority/30UE,Homelessness,1075,Communities,External Contractor,40198,Miscellaneous Expenses,5034,"Provision of young people's housing drop in and mediation service (9 hours weekly: Monday, Wednesday & Friday afternoons)",19/01/2022,0163960,"3,750.00",Revenue,Key,61252,,
Chorley Borough Council,http://statistics.data.gov.uk/id/local-authority/30UE,Corporate Management,1008,Communities,External Contractor,40198,Miscellaneous Expenses,5034,PPE for VCFS groups in Chorley who are supporting the Covid-19 community response,26/01/2022,0164098,844.72,Revenue,Key Engineering & Hygene Supplies,51615,,
Chorley Borough Council,http://statistics.data.gov.uk/id/local-authority/30UE,Planning Policy,1092,Communities,Consultants` Fees,40077,Services,5027,Chorley Standards Paper - Open Space Update - New Ward and Settlement boundaries calculation,26/01/2022,0164112,"1,650.00",Revenue,Knight Kavanah & Page,20440,,
Chorley Borough Council,http://statistics.data.gov.uk/id/local-authority/30UE,Central Support Services,1009,Commercial & Property,General Repairs - Reactive,20004,Repairs Maintenance & Alts,5005,lamp replacement works at Yarrow Valley Country Park car park,12/01/2022,0161914,350.00,Revenue,Lancashire County Council,17758,,
Chorley Borough Council,http://statistics.data.gov.uk/id/local-authority/30UE,Parking Services,1066,Commercial & Property,Car Park Lamps,20064,Grounds Maintenance Costs,5013,"FAO NAME REDACTED - car park lighting inspection and repair works, To carry out visual inspection on each council car park",19/01/2022,0164033,"2,137.08",Revenue,Lancashire County Council,20027,,
Chorley Borough Council,http://statistics.data.gov.uk/id/local-authority/30UE,Capital,Capital,Commercial & Property,Other Expenses,03030,Capital Expenditure,Capital,sec 278 agreement,26/01/2022,0164124,750.00,Capital,Lancashire County Council Highways,18845,,
Chorley Borough Council,http://statistics.data.gov.uk/id/local-authority/30UE,Business Support,1095,Commercial & Property,General Repairs - Reactive,20004,Repairs Maintenance & Alts,5005,Strawberry Fields  - reactive repair works,12/01/2022,0162501,270.80,Revenue,Lancashire Gas Services Ltd,78192,,
Chorley Borough Council,http://statistics.data.gov.uk/id/local-authority/30UE,Central Support Services,1009,Commercial & Property,General Repairs - Reactive,20004,Repairs Maintenance & Alts,5005,Astley Hall and Buildings - reactive repair works,12/01/2022,0162935,"1,090.04",Revenue,Lancashire Gas Services Ltd,78192,,
Chorley Borough Council,http://statistics.data.gov.uk/id/local-authority/30UE,Central Support Services,1009,Commercial & Property,Planned Maintenance,20006,Repairs Maintenance & Alts,5005,"020176, Clayton Green air con service",12/01/2022,0163034,283.50,Revenue,Lancashire Gas Services Ltd,78192,,
Chorley Borough Council,http://statistics.data.gov.uk/id/local-authority/30UE,Central Support Services,1009,Commercial & Property,General Repairs - Reactive,20004,Repairs Maintenance & Alts,5005,All Seasons - Reactive blanket,12/01/2022,0163035,"2,184.82",Revenue,Lancashire Gas Services Ltd,78192,,
Chorley Borough Council,http://statistics.data.gov.uk/id/local-authority/30UE,Central Support Services,1009,Commercial & Property,Planned Maintenance,20006,Repairs Maintenance & Alts,5005,"gas boiler services, 6 monthly checks and associated remedials at residential properties",12/01/2022,0163121,872.55,Revenue,Lancashire Gas Services Ltd,78192,,
Chorley Borough Council,http://statistics.data.gov.uk/id/local-authority/30UE,Central Support Services,1009,Commercial & Property,General Repairs - Reactive,20004,Repairs Maintenance & Alts,5005,Community Centres  - reactive repair works,12/01/2022,0163128,"1,686.50",Revenue,Lancashire Gas Services Ltd,78192,,
Chorley Borough Council,http://statistics.data.gov.uk/id/local-authority/30UE,Central Support Services,1009,Commercial & Property,General Repairs - Reactive,20004,Repairs Maintenance & Alts,5005,commercial - reactive repairs,12/01/2022,0163129,"1,408.85",Revenue,Lancashire Gas Services Ltd,78192,,
Chorley Borough Council,http://statistics.data.gov.uk/id/local-authority/30UE,Central Support Services,1009,Commercial & Property,General Repairs - Reactive,20004,Repairs Maintenance & Alts,5005,Bengal St - reactive repair works,12/01/2022,0163130,"1,481.49",Revenue,Lancashire Gas Services Ltd,78192,,
Chorley Borough Council,http://statistics.data.gov.uk/id/local-authority/30UE,Planning Policy,1092,Communities,Consultants` Fees,40077,Services,5027,Integrated Assessment / Habitats Regulations Assessment,12/01/2022,0163778,"3,516.13",Revenue,Land Use Consultants (LUC) Ltd,81849,,
Chorley Borough Council,http://statistics.data.gov.uk/id/local-authority/30UE,Planning Policy,1092,Communities,Consultants` Fees,40077,Services,5027,Land Use Study for Central Lancashire Local Plan,26/01/2022,0164113,"38,821.00",Revenue,Land Use Consultants (LUC) Ltd,81849,,
Chorley Borough Council,http://statistics.data.gov.uk/id/local-authority/30UE,Business Support,1095,Commercial & Property,Planned Maintenance,20006,Repairs Maintenance & Alts,5005,"Unit 4 Market Walk, PR7 1FD, Drain survey on a vacant unit. Prior to a tenant moving a request was made",26/01/2022,0163072,650.00,Revenue,Lanes Group plc,20269,,
Chorley Borough Council,http://statistics.data.gov.uk/id/local-authority/30UE,Homelessness,1075,Communities,Training Course Fees,17010,Indirect Employee Expenses,5002,Training that was delivered by Mark Pritchard for Housing Solutions team 14.12.21,26/01/2022,0164095,"1,100.00",Revenue,Mark Prichard,84225,,
Chorley Borough Council,http://statistics.data.gov.uk/id/local-authority/30UE,Central Support Services,1009,Commercial & Property,Planned Maintenance,20006,Repairs Maintenance & Alts,5005,"Legionella monitoring, Astley Hall, Coach House and Farmhouse",26/01/2022,0164220,75.00,Revenue,Maxigiene Environmental Services Ltd,67160,,
Chorley Borough Council,http://statistics.data.gov.uk/id/local-authority/30UE,Central Support Services,1009,Commercial & Property,Planned Maintenance,20006,Repairs Maintenance & Alts,5005,"Legionella monitoring, Parks Buildings -  Devonshire rec, harpers rec",26/01/2022,0164220,40.00,Revenue,Maxigiene Environmental Services Ltd,67160,,
Chorley Borough Council,http://statistics.data.gov.uk/id/local-authority/30UE,Central Support Services,1009,Commercial & Property,Planned Maintenance,20006,Repairs Maintenance & Alts,5005,"Legionella monitoring, Community centres",26/01/2022,0164220,169.16,Revenue,Maxigiene Environmental Services Ltd,67160,,
Chorley Borough Council,http://statistics.data.gov.uk/id/local-authority/30UE,Central Support Services,1009,Commercial & Property,Planned Maintenance,20006,Repairs Maintenance & Alts,5005,"Legionella monitoring, WC's including cemetery wc",26/01/2022,0164220,65.00,Revenue,Maxigiene Environmental Services Ltd,67160,,
Chorley Borough Council,http://statistics.data.gov.uk/id/local-authority/30UE,Central Support Services,1009,Commercial & Property,Planned Maintenance,20006,Repairs Maintenance & Alts,5005,"Legionella monitoring, sports pitches/pavilions",26/01/2022,0164220,72.08,Revenue,Maxigiene Environmental Services Ltd,67160,,
Chorley Borough Council,http://statistics.data.gov.uk/id/local-authority/30UE,Central Support Services,1009,Commercial & Property,Planned Maintenance,20006,Repairs Maintenance & Alts,5005,Legionella monitoring Bengal St,26/01/2022,0164220,25.00,Revenue,Maxigiene Environmental Services Ltd,67160,,
Chorley Borough Council,http://statistics.data.gov.uk/id/local-authority/30UE,Central Support Services,1009,Commercial & Property,Planned Maintenance,20006,Repairs Maintenance & Alts,5005,Legionella monitoring chorley cem,26/01/2022,0164220,20.00,Revenue,Maxigiene Environmental Services Ltd,67160,,
Chorley Borough Council,http://statistics.data.gov.uk/id/local-authority/30UE,Community Development,1097,Commercial & Property,Planned Maintenance,20006,Repairs Maintenance & Alts,5005,Legionella monitoring CAB (CIC),26/01/2022,0164220,20.00,Revenue,Maxigiene Environmental Services Ltd,67160,,
Chorley Borough Council,http://statistics.data.gov.uk/id/local-authority/30UE,Business Support,1095,Commercial & Property,Planned Maintenance,20006,Repairs Maintenance & Alts,5005,Legionella monitoring MW Mgt,26/01/2022,0164220,20.00,Revenue,Maxigiene Environmental Services Ltd,67160,,
Chorley Borough Council,http://statistics.data.gov.uk/id/local-authority/30UE,Central Support Services,1009,Commercial & Property,Planned Maintenance,20006,Repairs Maintenance & Alts,5005,Legionella monitoring Cotswold House,26/01/2022,0164220,20.00,Revenue,Maxigiene Environmental Services Ltd,67160,,
Chorley Borough Council,http://statistics.data.gov.uk/id/local-authority/30UE,Central Support Services,1009,Commercial & Property,Planned Maintenance,20006,Repairs Maintenance & Alts,5005,Legionella monitoring Market,26/01/2022,0164220,20.00,Revenue,Maxigiene Environmental Services Ltd,67160,,
Chorley Borough Council,http://statistics.data.gov.uk/id/local-authority/30UE,Central Support Services,1009,Commercial & Property,Planned Maintenance,20006,Repairs Maintenance & Alts,5005,Legionella monitoring Primrose,26/01/2022,0164220,30.00,Revenue,Maxigiene Environmental Services Ltd,67160,,
Chorley Borough Council,http://statistics.data.gov.uk/id/local-authority/30UE,Business Support,1095,Commercial & Property,Planned Maintenance,20006,Repairs Maintenance & Alts,5005,Legionella monitoring DOP,26/01/2022,0164220,30.00,Revenue,Maxigiene Environmental Services Ltd,67160,,
Chorley Borough Council,http://statistics.data.gov.uk/id/local-authority/30UE,Central Support Services,1009,Commercial & Property,Planned Maintenance,20006,Repairs Maintenance & Alts,5005,Legionella monitoring Town Hall,26/01/2022,0164220,25.00,Revenue,Maxigiene Environmental Services Ltd,67160,,
Chorley Borough Council,http://statistics.data.gov.uk/id/local-authority/30UE,Central Support Services,1009,Commercial & Property,Planned Maintenance,20006,Repairs Maintenance & Alts,5005,Legionella monitoring Union St,26/01/2022,0164220,25.00,Revenue,Maxigiene Environmental Services Ltd,67160,,
Chorley Borough Council,http://statistics.data.gov.uk/id/local-authority/30UE,Central Support Services,1009,Commercial & Property,Planned Maintenance,20006,Repairs Maintenance & Alts,5005,westway monthly monitoring @ 30,26/01/2022,0164220,30.00,Revenue,Maxigiene Environmental Services Ltd,67160,,
Chorley Borough Council,http://statistics.data.gov.uk/id/local-authority/30UE,Central Support Services,1009,Commercial & Property,Training Course Fees,17010,Indirect Employee Expenses,5002,NAME REDACTED Boundary Disputes in the Courtroom - A Surveyors Guide - Webinar 08/02/2022,26/01/2022,0164175,250.00,Revenue,MBL (Seminars) Ltd,71773,,
Chorley Borough Council,http://statistics.data.gov.uk/id/local-authority/30UE,Service Management & Support,1009,Customer & Digital,Supplies-Grounds Maintenance,40025,"Equipment, Furniture & Materia",5023,20 tonne of black limestone dust,12/01/2022,0163269,429.10,Revenue,Mc & Ma Stewart (Haulage Ltd),16627,,
Chorley Borough Council,http://statistics.data.gov.uk/id/local-authority/30UE,Service Management & Support,1009,Customer & Digital,Supplies-Grounds Maintenance,40025,"Equipment, Furniture & Materia",5023,Supply 20 ton top dressing (70/30) deliver to Bengal St depot,12/01/2022,0163270,"1,037.52",Revenue,Mc & Ma Stewart (Haulage Ltd),16627,,
Chorley Borough Council,http://statistics.data.gov.uk/id/local-authority/30UE,Culture & Heritage,1036,Policy & Governance,Conservation Of Exhibits,40059,Services,5027,Brune B280 Comfort white/ anthracite - 865 Delivery - Humidifier - 25.00,12/01/2022,0163693,890.00,Revenue,Meaco Measurement & Control Ltd,16527,,
Chorley Borough Council,http://statistics.data.gov.uk/id/local-authority/30UE,Central Support Services,1009,Commercial & Property,General Repairs - Reactive,20004,Repairs Maintenance & Alts,5005,"Astley Park Pavillion, Your Order No 13028, Attend site to reported blocked gulley�s, missing drain covers",12/01/2022,0158242,280.00,Revenue,Michael Roe,78294,,
Chorley Borough Council,http://statistics.data.gov.uk/id/local-authority/30UE,Central Support Services,1009,Commercial & Property,General Repairs - Reactive,20004,Repairs Maintenance & Alts,5005,"14014, Clayton green leisure centre, To attend site and rectify foul smells from the drains",26/01/2022,0164161,280.00,Revenue,Michael Roe,78294,,
Chorley Borough Council,http://statistics.data.gov.uk/id/local-authority/30UE,Service Management & Support,1009,Customer & Digital,Training Course Fees,17010,Indirect Employee Expenses,5002,"Chainsaw Maintenance, Cross Cutting and Felling up to 380mm - Units 201/202 for Kevin Parkinson course held in partnership",19/01/2022,0164055,772.50,Revenue,Morton Training Limited,76873,,
Chorley Borough Council,http://statistics.data.gov.uk/id/local-authority/30UE,Development Control,1091,Policy & Governance,Legal Fees,40171,Miscellaneous Expenses,5034,"Professional fees in connection with Blainscough Lane Public Inquiry, Advising in Conference, Brief on Hearing, Refresher",26/01/2022,0163623,"14,475.00",Revenue,Mr Ian Ponter,19968,,
Chorley Borough Council,http://statistics.data.gov.uk/id/local-authority/30UE,Service Management & Support,1009,Customer & Digital,Supplies - Workshop,40246,"Equipment, Furniture & Materia",5023,As per Invoice 1722,26/01/2022,0164093,"1,311.50",Revenue,MW Grass Machinery,21616,,
Chorley Borough Council,http://statistics.data.gov.uk/id/local-authority/30UE,Central Support Services,1009,Customer & Digital,Computer Software-Purchase,40100,Communication and Computing,5028,VRS Elite Workgroup Version,12/01/2022,0162296,934.00,Revenue,NEC Software Solutions UK Ltd,18285,,
Chorley Borough Council,http://statistics.data.gov.uk/id/local-authority/30UE,Business Support,1095,Commercial & Property,Security Service,40062,Services,5027,"Evening Site Security Services, Market Walk Shopping Centre, 5pm-midnight. From 1st April 2021 to End March 2022",19/01/2022,0163023,904.75,Revenue,New Concept Security NW Ltd T/A New Concept Goup,80488,,
Chorley Borough Council,http://statistics.data.gov.uk/id/local-authority/30UE,Business Support,1095,Commercial & Property,Security Service,40062,Services,5027,"Evening Site Security Services, Market Walk Shopping Centre, 5pm-midnight. From 1st April 2021 to End March 2022",19/01/2022,0163639,904.75,Revenue,New Concept Security NW Ltd T/A New Concept Goup,80488,,
Chorley Borough Council,http://statistics.data.gov.uk/id/local-authority/30UE,Business Support,1095,Commercial & Property,Security Service,40062,Services,5027,"Evening Site Security Services, Market Walk Shopping Centre, 5pm-midnight. From 1st April 2021 to End March 2022",05/01/2022,0163785,904.75,Revenue,New Concept Security NW Ltd T/A New Concept Goup,80488,,
Chorley Borough Council,http://statistics.data.gov.uk/id/local-authority/30UE,Regulatory Services,1048,Customer & Digital,"Hackney Badges, Plates Etc.",40023,"Equipment, Furniture & Materia",5023,Private Hire door signs to include tamper evident hologram and cover x 40 @ 6.88 each,12/01/2022,0163349,290.10,Revenue,NewAuto Ltd t/a MOGO UK,17187,,
Chorley Borough Council,http://statistics.data.gov.uk/id/local-authority/30UE,Central Support Services,1009,Policy & Governance,Laundry,40042,"Clothing, Uniforms and Laundry",5025,"Tablecloths laundered, pressed and returned - 10th November 2021.",12/01/2022,0163747,495.00,Revenue,North West Ironing & Laundry Centre,20450,,
Chorley Borough Council,http://statistics.data.gov.uk/id/local-authority/30UE,Corporate Management,1008,Customer & Digital,Miscellaneous Expenses,40200,Miscellaneous Expenses,5034,Extension of hired vehicles during covid 19 period.,12/01/2022,0161359,594.16,Revenue,Northgate Vehicle Hire (NW) Ltd,17360,,
Chorley Borough Council,http://statistics.data.gov.uk/id/local-authority/30UE,Central Support Services,1009,Customer & Digital,Hire Of Vehicles and Plant,30028,Contrct Hire & Operating Lease,5018,"vehicle hire, 3.5 ton Luton Van with tail lift (April 2021 - 31 March 2022)",05/01/2022,0163024,594.16,Revenue,Northgate Vehicle Hire (NW) Ltd,17360,,
Chorley Borough Council,http://statistics.data.gov.uk/id/local-authority/30UE,Corporate Management,1008,Customer & Digital,Hire Of Vehicles and Plant,30028,Contrct Hire & Operating Lease,5018,"3 x Ford transit Connect vans, 72 days hire to the 20th December net value for 3 vans @ 9.29 each- 2,006.64p",05/01/2022,0163024,260.12,Revenue,Northgate Vehicle Hire (NW) Ltd,17360,,
Chorley Borough Council,http://statistics.data.gov.uk/id/local-authority/30UE,Central Support Services,1009,Customer & Digital,Hire Of Vehicles and Plant,30028,Contrct Hire & Operating Lease,5018,"vehicle hire,  3.5 ton Luton Van with  tail lift  (April 2021 - 31 March 2022)",12/01/2022,0163936,594.16,Revenue,Northgate Vehicle Hire (NW) Ltd,17360,,
Chorley Borough Council,http://statistics.data.gov.uk/id/local-authority/30UE,Central Support Services,1009,Policy & Governance,Exhibitions & Special Events,40158,Miscellaneous Expenses,5034,"Portable Toilet Hire, service for the Winter Wonderland, 4wks hire 7wc (long term), 4wks hire 2 baby change (long term)",26/01/2022,0163811,"3,540.00",Revenue,Northwest Portables,74432,,
Chorley Borough Council,http://statistics.data.gov.uk/id/local-authority/30UE,Business Support,1095,Commercial & Property,Electricity,20013,Energy Costs,5006,1/11 to 30/11/21,26/01/2022,0163589,"1,097.75",Revenue,Npower Commercial Gas,16814,,
Chorley Borough Council,http://statistics.data.gov.uk/id/local-authority/30UE,Business Support,1095,Commercial & Property,Electricity,20013,Energy Costs,5006,1/11 to 30/11/21,26/01/2022,0163592,"3,514.54",Revenue,Npower Commercial Gas,16814,,
Chorley Borough Council,http://statistics.data.gov.uk/id/local-authority/30UE,Open Spaces,1038,Commercial & Property,Electricity,20013,Energy Costs,5006,1/11 to 30/11/21,12/01/2022,0163594,330.56,Revenue,Npower Commercial Gas,16814,,
Chorley Borough Council,http://statistics.data.gov.uk/id/local-authority/30UE,Homelessness,1075,Commercial & Property,Electricity,20013,Energy Costs,5006,1/11 to 30/11/21,12/01/2022,0163596,580.12,Revenue,Npower Commercial Gas,16814,,
Chorley Borough Council,http://statistics.data.gov.uk/id/local-authority/30UE,Homelessness,1075,Commercial & Property,Electricity,20013,Energy Costs,5006,1/11 to 30/11/21,26/01/2022,0163597,296.80,Revenue,Npower Commercial Gas,16814,,
Chorley Borough Council,http://statistics.data.gov.uk/id/local-authority/30UE,Business Support,1095,Commercial & Property,Electricity,20013,Energy Costs,5006,1/11 to 30/11/21,12/01/2022,0163599,"1,191.33",Revenue,Npower Commercial Gas,16814,,
Chorley Borough Council,http://statistics.data.gov.uk/id/local-authority/30UE,Parking Services,1066,Commercial & Property,Electricity,20013,Energy Costs,5006,1/11 to 30/11/21,12/01/2022,0163600,702.40,Revenue,Npower Commercial Gas,16814,,
Chorley Borough Council,http://statistics.data.gov.uk/id/local-authority/30UE,Parking Services,1066,Commercial & Property,Electricity,20013,Energy Costs,5006,1/11 to 30/11/21,26/01/2022,0163602,467.75,Revenue,Npower Commercial Gas,16814,,
Chorley Borough Council,http://statistics.data.gov.uk/id/local-authority/30UE,Business Support,1095,Commercial & Property,Electricity,20013,Energy Costs,5006,1/11 to 30/11/21,26/01/2022,0163604,951.64,Revenue,Npower Commercial Gas,16814,,
Chorley Borough Council,http://statistics.data.gov.uk/id/local-authority/30UE,Parking Services,1066,Commercial & Property,Electricity,20013,Energy Costs,5006,1/11 to 30/11/21,26/01/2022,0163614,356.79,Revenue,Npower Commercial Gas,16814,,
Chorley Borough Council,http://statistics.data.gov.uk/id/local-authority/30UE,Recreation & Sport,1037,Commercial & Property,Electricity,20013,Energy Costs,5006,1/11 to 30/11/21,26/01/2022,0163922,"1,145.45",Revenue,Npower Commercial Gas,16814,,
Chorley Borough Council,http://statistics.data.gov.uk/id/local-authority/30UE,Central Support Services,1009,Commercial & Property,Electricity,20013,Energy Costs,5006,1/10 to 31/12/21,26/01/2022,0164133,993.31,Revenue,Npower Commercial Gas,16814,,
Chorley Borough Council,http://statistics.data.gov.uk/id/local-authority/30UE,Parking Services,1066,Commercial & Property,Electricity,20013,Energy Costs,5006,1/10 to 31/12/21,26/01/2022,0164134,401.53,Revenue,Npower Commercial Gas,16814,,
Chorley Borough Council,http://statistics.data.gov.uk/id/local-authority/30UE,Parking Services,1066,Commercial & Property,External Contractors,50008,Private Contractors,5042,Provision of Off Street Car Park Cash Collection & Enforcement � final year of contract 01.11.21 to 31.10.22,26/01/2022,0164221,"4,518.23",Revenue,NSL Limited,67253,,
Chorley Borough Council,http://statistics.data.gov.uk/id/local-authority/30UE,Central Support Services,1009,Policy & Governance,Miscellaneous Expenses,40200,Miscellaneous Expenses,5034,lights switch on,05/01/2022,0163777,750.00,Revenue,Olivia Broome,83973,,
Chorley Borough Council,http://statistics.data.gov.uk/id/local-authority/30UE,Planning Policy,1092,Communities,Operational Employees Salaries,10000,Direct Employee Expenses,5001,Supply of agency staff to work on the Central Lancashire Local Plan,26/01/2022,0164105,"1,196.00",Revenue,Park Avenue Recruitment Ltd,82305,,
Chorley Borough Council,http://statistics.data.gov.uk/id/local-authority/30UE,Planning Policy,1092,Communities,Operational Employees Salaries,10000,Direct Employee Expenses,5001,Supply of agency staff to work on the Central Lancashire Local Plan,26/01/2022,0164116,793.50,Revenue,Park Avenue Recruitment Ltd,82305,,
Chorley Borough Council,http://statistics.data.gov.uk/id/local-authority/30UE,Central Support Services,1009,Policy & Governance,Cleaning Materials,40019,"Equipment, Furniture & Materia",5023,AD104 Mini Jumbo 12 pack QTY 10 packs @ 9.67/ pack,19/01/2022,0163315,96.70,Revenue,Pattersons Holdings (Bristol),77537,,
Chorley Borough Council,http://statistics.data.gov.uk/id/local-authority/30UE,Central Support Services,1009,Policy & Governance,Cleaning Materials,40019,"Equipment, Furniture & Materia",5023,AC003 Small toilet rolls 36 pack @ 6.46/pack QTY 10 packs,19/01/2022,0163315,64.60,Revenue,Pattersons Holdings (Bristol),77537,,
Chorley Borough Council,http://statistics.data.gov.uk/id/local-authority/30UE,Central Support Services,1009,Policy & Governance,Cleaning Materials,40019,"Equipment, Furniture & Materia",5023,BC040-5 Fragranced toilet cleaner 5Ltr @ 3.53 per container qty 8 x 5L,19/01/2022,0163315,7.06,Revenue,Pattersons Holdings (Bristol),77537,,
Chorley Borough Council,http://statistics.data.gov.uk/id/local-authority/30UE,Central Support Services,1009,Policy & Governance,Cleaning Materials,40019,"Equipment, Furniture & Materia",5023,BC015-5 Bleach 5ltr QTY 8 x 5L @ 2.33 per container,19/01/2022,0163315,18.64,Revenue,Pattersons Holdings (Bristol),77537,,
Chorley Borough Council,http://statistics.data.gov.uk/id/local-authority/30UE,Central Support Services,1009,Policy & Governance,Cleaning Materials,40019,"Equipment, Furniture & Materia",5023,BK104-5 Liquid hand soap unperfumed 5L 4.84 each Qty 4 x 5L containers,19/01/2022,0163315,19.36,Revenue,Pattersons Holdings (Bristol),77537,,
Chorley Borough Council,http://statistics.data.gov.uk/id/local-authority/30UE,Central Support Services,1009,Policy & Governance,Cleaning Materials,40019,"Equipment, Furniture & Materia",5023,NC-16006 Henry Vac Bag qty 6 packs 3.30 per pack,19/01/2022,0163315,19.80,Revenue,Pattersons Holdings (Bristol),77537,,
Chorley Borough Council,http://statistics.data.gov.uk/id/local-authority/30UE,Central Support Services,1009,Policy & Governance,Cleaning Materials,40019,"Equipment, Furniture & Materia",5023,AE233 Paper Hand towels qty 20 8.53 per box each,19/01/2022,0163315,170.60,Revenue,Pattersons Holdings (Bristol),77537,,
Chorley Borough Council,http://statistics.data.gov.uk/id/local-authority/30UE,Central Support Services,1009,Policy & Governance,Cleaning Materials,40019,"Equipment, Furniture & Materia",5023,BB034-5 Washing up liquid QTY 8 x 5L @3.30 each,19/01/2022,0163315,23.10,Revenue,Pattersons Holdings (Bristol),77537,,
Chorley Borough Council,http://statistics.data.gov.uk/id/local-authority/30UE,Central Support Services,1009,Policy & Governance,Cleaning Materials,40019,"Equipment, Furniture & Materia",5023,AF113 Blue centre feed rolls - 6 pack @7.77 per pack,19/01/2022,0163315,46.62,Revenue,Pattersons Holdings (Bristol),77537,,
Chorley Borough Council,http://statistics.data.gov.uk/id/local-authority/30UE,Central Support Services,1009,Policy & Governance,Cleaning Materials,40019,"Equipment, Furniture & Materia",5023,CM180 Black Bin Liners 12.57 Qty 5 boxes,19/01/2022,0163315,62.85,Revenue,Pattersons Holdings (Bristol),77537,,
Chorley Borough Council,http://statistics.data.gov.uk/id/local-authority/30UE,Central Support Services,1009,Policy & Governance,Cleaning Materials,40019,"Equipment, Furniture & Materia",5023,BA010-5 Hard Surface cleaner QTY 4 x 5L 5.25 each,19/01/2022,0163315,21.00,Revenue,Pattersons Holdings (Bristol),77537,,
Chorley Borough Council,http://statistics.data.gov.uk/id/local-authority/30UE,Central Support Services,1009,Policy & Governance,Cleaning Materials,40019,"Equipment, Furniture & Materia",5023,CG121B Blue dish cloths 1.16 per pack of 10 QTY 10 packs,19/01/2022,0163315,11.60,Revenue,Pattersons Holdings (Bristol),77537,,
Chorley Borough Council,http://statistics.data.gov.uk/id/local-authority/30UE,Central Support Services,1009,Policy & Governance,Cleaning Materials,40019,"Equipment, Furniture & Materia",5023,NC00003 Henry Hose QTY 2 3.75 each,19/01/2022,0163315,14.26,Revenue,Pattersons Holdings (Bristol),77537,,
Chorley Borough Council,http://statistics.data.gov.uk/id/local-authority/30UE,Business Support,1095,Commercial & Property,Cleaning Materials,40019,"Equipment, Furniture & Materia",5023,AA301 toilet rolls x 6 AE208 Hand Towels x 6 AF113 Blue Roll x 2 CM180  black refuse sacks,19/01/2022,0163836,303.63,Revenue,Pattersons Holdings (Bristol),77537,,
Chorley Borough Council,http://statistics.data.gov.uk/id/local-authority/30UE,Economic Development,1096,Commercial & Property,Cleaning Materials,40019,"Equipment, Furniture & Materia",5023,Please supply cleaning materials as per email,12/01/2022,0163837,274.01,Revenue,Pattersons Holdings (Bristol),77537,,
Chorley Borough Council,http://statistics.data.gov.uk/id/local-authority/30UE,Central Support Services,1009,Policy & Governance,Cleaning Materials,40019,"Equipment, Furniture & Materia",5023,AD104 Mini Jumbo 12 pack QTY 10 packs @ 9.67/ pack,26/01/2022,0164118,96.70,Revenue,Pattersons Holdings (Bristol),77537,,
Chorley Borough Council,http://statistics.data.gov.uk/id/local-authority/30UE,Central Support Services,1009,Policy & Governance,Cleaning Materials,40019,"Equipment, Furniture & Materia",5023,AC003 Small toilet rolls 36 pack @ 6.46/pack QTY 10 packs,26/01/2022,0164118,64.60,Revenue,Pattersons Holdings (Bristol),77537,,
Chorley Borough Council,http://statistics.data.gov.uk/id/local-authority/30UE,Central Support Services,1009,Policy & Governance,Cleaning Materials,40019,"Equipment, Furniture & Materia",5023,BC040-5 Fragranced toilet cleaner 5Ltr @ 3.53 per container qty 8 x 5L,26/01/2022,0164118,28.24,Revenue,Pattersons Holdings (Bristol),77537,,
Chorley Borough Council,http://statistics.data.gov.uk/id/local-authority/30UE,Central Support Services,1009,Policy & Governance,Cleaning Materials,40019,"Equipment, Furniture & Materia",5023,Stock Code: HC0697 Purell Surface Sanitising Spray 750ml (Case of 6) 31.07,26/01/2022,0164118,24.86,Revenue,Pattersons Holdings (Bristol),77537,,
Chorley Borough Council,http://statistics.data.gov.uk/id/local-authority/30UE,Central Support Services,1009,Policy & Governance,Cleaning Materials,40019,"Equipment, Furniture & Materia",5023,AF113 Blue centre feed rolls - 6 pack @7.77 per pack,26/01/2022,0164118,46.62,Revenue,Pattersons Holdings (Bristol),77537,,
Chorley Borough Council,http://statistics.data.gov.uk/id/local-authority/30UE,Central Support Services,1009,Policy & Governance,Cleaning Materials,40019,"Equipment, Furniture & Materia",5023,Stock Code: JH-00017 Jangro Kitchen Cleaner sanitiser 5L QTY 6x5L 7.15 each Total 42.90,26/01/2022,0164118,36.30,Revenue,Pattersons Holdings (Bristol),77537,,
Chorley Borough Council,http://statistics.data.gov.uk/id/local-authority/30UE,Economic Development,1096,Commercial & Property,Christmas Lights,40179,Miscellaneous Expenses,5034,Portland St Reindeer stages x 2 1450,12/01/2022,0162897,"1,450.00",Revenue,Paul K Sound & Vision,16607,,
Chorley Borough Council,http://statistics.data.gov.uk/id/local-authority/30UE,Economic Development,1096,Commercial & Property,Christmas Lights,40179,Miscellaneous Expenses,5034,Leisure Centre stage for cone tree (separate invoice required) 725,12/01/2022,0162897,725.00,Revenue,Paul K Sound & Vision,16607,,
Chorley Borough Council,http://statistics.data.gov.uk/id/local-authority/30UE,Tourism,1039,Policy & Governance,Exhibitions & Special Events,40158,Miscellaneous Expenses,5034,"SUPPLY FOR FLOWER SHOW, CABLES AND DISTRO PA FOR MARQUEE STAGING FESTOON FOR MARQUEE",12/01/2022,0163776,"3,050.00",Revenue,Paul K Sound & Vision,16607,,
Chorley Borough Council,http://statistics.data.gov.uk/id/local-authority/30UE,Central Support Services,1009,Policy & Governance,HR Approved Occ Health Fees,15201,Indirect Employee Expenses,5002,Occupational Health charges for September 2021,26/01/2022,0164316,277.50,Revenue,People Asset Management Limited,76487,,
Chorley Borough Council,http://statistics.data.gov.uk/id/local-authority/30UE,Central Support Services,1009,Policy & Governance,HR Recruitment Expenses,15200,Indirect Employee Expenses,5002,DBS Checks for staff,12/01/2022,0163631,145.81,Revenue,Personnel Checks Ltd,81534,,
Chorley Borough Council,http://statistics.data.gov.uk/id/local-authority/30UE,Central Support Services,1009,Policy & Governance,HR Recruitment Expenses,15200,Indirect Employee Expenses,5002,gov fee,12/01/2022,0163631,280.00,Revenue,Personnel Checks Ltd,81534,,
Chorley Borough Council,http://statistics.data.gov.uk/id/local-authority/30UE,Central Support Services,1009,Customer & Digital,Telephones - Other,40085,Communication and Computing,5028,01397718 - LK6-00004LR Phone System Shared Server All Language Subscription Licence Per User - Licence,12/01/2022,0163681,300.60,Revenue,Phoenix Software Ltd,17046,,
Chorley Borough Council,http://statistics.data.gov.uk/id/local-authority/30UE,Central Support Services,1009,Policy & Governance,Legal Fees,40171,Miscellaneous Expenses,5034,"Planning Enforcement appeal - Chisnall House Farm, Croston Lane 15/09/2021 Advising in Conference 1,250.00",26/01/2022,0163348,"1,250.00",Revenue,Piers Riley-Smith,84151,,
Chorley Borough Council,http://statistics.data.gov.uk/id/local-authority/30UE,Development Control,1091,Policy & Governance,Legal Fees,40171,Miscellaneous Expenses,5034,LEGAL ADVICE REGARDING CHORLEY LODGE DUXBURY,26/01/2022,0163829,675.00,Revenue,Piers Riley-Smith,84151,,
Chorley Borough Council,http://statistics.data.gov.uk/id/local-authority/30UE,Service Management & Support,1009,Customer & Digital,Vehicles and Plant Maintenance,30045,Direct Transport Costs,5016,2 x 210 litre barrel of adblue @ 0.75ppl,26/01/2022,0164295,315.00,Revenue,Pilkington Oils,18075,,
Chorley Borough Council,http://statistics.data.gov.uk/id/local-authority/30UE,Economic Development,1096,Commercial & Property,Exhibitions & Special Events,40158,Miscellaneous Expenses,5034,EVAs Business Awards 2022. Chorley Council award category sponsorship.,05/01/2022,0163707,"3,300.00",Revenue,Pink Link Ladies Ltd,66886,,
Chorley Borough Council,http://statistics.data.gov.uk/id/local-authority/30UE,Economic Development,1096,NEW Planning & Development,Exhibitions & Special Events,40158,Miscellaneous Expenses,5034,"Sponsorship of Chorley area Pink Link business networking group. 12 months, sponsorship; May 2022 to April 2023",26/01/2022,0164273,"1,500.00",Revenue,Pink Link Ladies Ltd,66886,,
Chorley Borough Council,http://statistics.data.gov.uk/id/local-authority/30UE,Development Control,1091,Customer & Digital,Planning Application Fees,60149,Customer & Client Receipts,5064,ADDRESS REDACTED,26/01/2022,0163774,462.00,Revenue,Planning Portal Ltd,77808,,
Chorley Borough Council,http://statistics.data.gov.uk/id/local-authority/30UE,Central Support Services,1009,Commercial & Property,General Repairs - Reactive,20004,Repairs Maintenance & Alts,5005,"5236, All seasons - Hyprolyser cell acid wash (Order13821 / HLP00148149) 22/10/21",12/01/2022,0162961,250.00,Revenue,Pool Technical Services Ltd,81000,,
Chorley Borough Council,http://statistics.data.gov.uk/id/local-authority/30UE,Central Support Services,1009,Commercial & Property,General Repairs - Reactive,20004,Repairs Maintenance & Alts,5005,"5231, Brinscall Baths, Controller an hyprolyser repair, Hyprolyser cell acid wash, Labour (Standard, Contract) 18/10/21 - 19/10/21",12/01/2022,0162962,522.00,Revenue,Pool Technical Services Ltd,81000,,
Chorley Borough Council,http://statistics.data.gov.uk/id/local-authority/30UE,Central Support Services,1009,Commercial & Property,General Repairs - Reactive,20004,Repairs Maintenance & Alts,5005,"All Seasons - Supply and installation of valves: 6'' DI Body Butterfly Valve DI Disc 125 (x1)(TP backwash), 8'' DI Butterfly Valve",12/01/2022,0162973,"1,571.50",Revenue,Pool Technical Services Ltd,81000,,
Chorley Borough Council,http://statistics.data.gov.uk/id/local-authority/30UE,Central Support Services,1009,Commercial & Property,General Repairs - Reactive,20004,Repairs Maintenance & Alts,5005,"Brinscall, Supply and undertaking of: Hyprolyser cell acid wash 26/11/21",26/01/2022,0164126,250.00,Revenue,Pool Technical Services Ltd,81000,,
Chorley Borough Council,http://statistics.data.gov.uk/id/local-authority/30UE,Central Support Services,1009,Policy & Governance,Exhibitions & Special Events,40158,Miscellaneous Expenses,5034,"10xMesh banners - single Heras fence panel size, 3xBanner 3m x 1m, 1x3660 x 880, 1x6mm Correx signs Batch of A2 x 2no",05/01/2022,0163715,"1,419.93",Revenue,Poppy Signs Ltd,21898,,
Chorley Borough Council,http://statistics.data.gov.uk/id/local-authority/30UE,Central Support Services,1009,Customer & Digital,Safety Signs And Posters,40017,"Equipment, Furniture & Materia",5023,A3 Correx Board Fly Tipping Signs x 40 as per quote REF16299/1,12/01/2022,0163810,489.09,Revenue,Poppy Signs Ltd,21898,,
Chorley Borough Council,http://statistics.data.gov.uk/id/local-authority/30UE,Central Support Services,1009,Customer & Digital,Safety Signs And Posters,40017,"Equipment, Furniture & Materia",5023,A3 Correx Board Dog Fouling Signs x 200 as per quote REF16299/1,12/01/2022,0163810,"1,725.56",Revenue,Poppy Signs Ltd,21898,,
Chorley Borough Council,http://statistics.data.gov.uk/id/local-authority/30UE,Central Support Services,1009,Policy & Governance,Publicity - Advertising,40157,Miscellaneous Expenses,5034,"1xFull colour digital print with protective laminate on 'easy peel' vinyl, print and installation. 1xRemove vinyl from sign after event",05/01/2022,0163839,"1,000.00",Revenue,Poppy Signs Ltd,21898,,
Chorley Borough Council,http://statistics.data.gov.uk/id/local-authority/30UE,Parking Services,1066,Commercial & Property,Fixtures & Fittings - Purchase,20027,Fixtures and Fittings,5010,"Welcome to Cleveland Street car park sign, Plate and post sign to match the previous car park welcome signs",26/01/2022,0164115,878.72,Revenue,Poppy Signs Ltd,21898,,
Chorley Borough Council,http://statistics.data.gov.uk/id/local-authority/30UE,Elections,1012,Policy & Governance,Postages,40082,Communication and Computing,5028,PI refresh 2022 - initial write out x 6757 plus 15 standard and 5 overseas,26/01/2022,0164234,"2,755.19",Revenue,Print Image Facilities LLP,57870,,
Chorley Borough Council,http://statistics.data.gov.uk/id/local-authority/30UE,Other Short Term Creditors,,Policy & Governance,General Balances,00100,Balance Sheet,Balance,Salary Deductions,19/01/2022,0164079,"3,749.00",Revenue,PRUDENTIAL,18178,,
Chorley Borough Council,http://statistics.data.gov.uk/id/local-authority/30UE,Homelessness,1075,Communities,Other Contributions,40145,Grants and Subscriptions,5031,1 room Hotel placement 19/10/2021 - 29/11/2021,05/01/2022,0163807,"1,830.00",Revenue,Purple Roomz,84223,,
Chorley Borough Council,http://statistics.data.gov.uk/id/local-authority/30UE,Homelessness,1075,Communities,Service Fees,40056,Services,5027,"Block Booking of hotel rooms as follows: 5 rooms from 23/12/21 until 04/01/22, 2 rooms from 4/01/22 until 31/01/22",26/01/2022,0164227,"5,700.00",Revenue,Purple Roomz,84223,,
Chorley Borough Council,http://statistics.data.gov.uk/id/local-authority/30UE,Regulatory Services,1048,Customer & Digital,Taxi Testing & Vehicle Safety Report,40234,Services,5027,MOT`S,12/01/2022,0163821,453.95,Revenue,R.C.J Motors,63625,,
Chorley Borough Council,http://statistics.data.gov.uk/id/local-authority/30UE,Culture & Heritage,1036,Policy & Governance,Arts Development Initiatives,40187,Miscellaneous Expenses,5034,purchase of equipment for event (projector and PAs) - 427.39 Print room membership - 250 Total - 677.39,26/01/2022,0164238,677.39,Revenue,Rebecca Chesney,78286,,
Chorley Borough Council,http://statistics.data.gov.uk/id/local-authority/30UE,Central Support Services,1009,Policy & Governance,IT Software - Annual Licences,40101,Communication and Computing,5028,Subscription fee from November 2021 to November 2022 - Invoice No UK040608SI,26/01/2022,0163317,"13,125.00",Revenue,Reward Gateway (UK) Ltd,77948,,
Chorley Borough Council,http://statistics.data.gov.uk/id/local-authority/30UE,Service Management & Support,1009,Customer & Digital,External Contractor,40198,Miscellaneous Expenses,5034,"As agreed with NAMES REDACTED - Hydraulic assessment for debris screens, 1 at 150mm, 1 at 300mm bar spacings",12/01/2022,0163208,800.00,Revenue,Richard Allitt Associates Ltd,84013,,
Chorley Borough Council,http://statistics.data.gov.uk/id/local-authority/30UE,Central Support Services,1009,Commercial & Property,Professional Fees,40063,Services,5027,Alker Lane PM / QS,12/01/2022,0163368,"3,575.00",Revenue,Rider Levett Bucknall,67527,,
Chorley Borough Council,http://statistics.data.gov.uk/id/local-authority/30UE,Central Support Services,1009,Commercial & Property,Professional Fees,40063,Services,5027,Additional Tatton Health and Safety site audit,12/01/2022,0163945,350.00,Revenue,Rider Levett Bucknall,67527,,
Chorley Borough Council,http://statistics.data.gov.uk/id/local-authority/30UE,Central Support Services,1009,Commercial & Property,Consultants` Fees,40077,Services,5027,Project Management & Quantity Surveying Services on the Tatton Regeneration scheme Contractor appointment to RIBA Stage 7,26/01/2022,0164090,"14,565.00",Revenue,Rider Levett Bucknall,67527,,
Chorley Borough Council,http://statistics.data.gov.uk/id/local-authority/30UE,Central Support Services,1009,Commercial & Property,Professional Fees,40063,Services,5027,Marketing fees for council commercial property,26/01/2022,0164218,570.00,Revenue,Rightmove Group Ltd,77717,,
Chorley Borough Council,http://statistics.data.gov.uk/id/local-authority/30UE,Capital,Capital,Commercial & Property,Main Contractor,03007,Capital Expenditure,Capital,"Delivery of the Tatton regeneration scheme, All in accordance with the executed NEC Engineering & Construct Contract",26/01/2022,0163998,"534,676.69",Capital,Robertson CE Limited,81176,,
Chorley Borough Council,http://statistics.data.gov.uk/id/local-authority/30UE,Central Support Services,1009,Communities,Miscellaneous Expenses,40200,Miscellaneous Expenses,5034,30 x 20 PSPO / ASB FPN books estimate number - 024287,05/01/2022,0163772,524.00,Revenue,Rotaset Printers Limited,77187,,
Chorley Borough Council,http://statistics.data.gov.uk/id/local-authority/30UE,Business Support,1095,Commercial & Property,Postages,40082,Communication and Computing,5028,"Per renewal invoice 1802458240, postal collection from SFDOP for 2022",26/01/2022,0164129,787.00,Revenue,Royal Mail Retail,78594,,
Chorley Borough Council,http://statistics.data.gov.uk/id/local-authority/30UE,Planning Policy,1092,Communities,Training Course Fees,17010,Indirect Employee Expenses,5002,Introduction to ArcGIS Desktop Training (3No. Candidates),12/01/2022,0163933,"1,200.00",Revenue,Salford GIS Ltd,16684,,
Chorley Borough Council,http://statistics.data.gov.uk/id/local-authority/30UE,Planning Policy,1092,Communities,Training Course Fees,17010,Indirect Employee Expenses,5002,Introduction to ArcGIS Desktop - Bespoke Training Course  (2No. Candidates),12/01/2022,0163935,800.00,Revenue,Salford GIS Ltd,16684,,
Chorley Borough Council,http://statistics.data.gov.uk/id/local-authority/30UE,Service Management & Support,1009,Customer & Digital,Hire of Plant,40001,"Equipment, Furniture & Materia",5023,To hire a mini digger for two weeks,26/01/2022,0164099,500.00,Revenue,Scambler Plant Hire Ltd,16710,,
Chorley Borough Council,http://statistics.data.gov.uk/id/local-authority/30UE,Central Support Services,1009,Commercial & Property,Planned Maintenance,20006,Repairs Maintenance & Alts,5005,To ensure the correct operation of your equipment we performed a repair visit and checked that the equipment was safe.,12/01/2022,0163486,259.60,Revenue,Schindler Ltd,78215,,
Chorley Borough Council,http://statistics.data.gov.uk/id/local-authority/30UE,Central Support Services,1009,Commercial & Property,Planned Maintenance,20006,Repairs Maintenance & Alts,5005,To ensure the correct operation of your equipment we performed a repair visit and checked that the equipment was safe.,12/01/2022,0163487,259.60,Revenue,Schindler Ltd,78215,,
Chorley Borough Council,http://statistics.data.gov.uk/id/local-authority/30UE,Central Support Services,1009,Commercial & Property,General Repairs - Reactive,20004,Repairs Maintenance & Alts,5005,"Fleet Street, PR7 2EE, Schindler engineer found that one of the components had been affected by an external influence.",26/01/2022,0164292,258.00,Revenue,Schindler Ltd,78215,,
Chorley Borough Council,http://statistics.data.gov.uk/id/local-authority/30UE,Homelessness,1075,Commercial & Property,Security Service,40062,Services,5027,In respect of concierge services at Cotswold Supported House for the period: 01/04/2021 - 31/03/2022,12/01/2022,0162433,"7,146.09",Revenue,Sector Security Services,19269,,
Chorley Borough Council,http://statistics.data.gov.uk/id/local-authority/30UE,Business Support,1095,Commercial & Property,External Contractor,40198,Miscellaneous Expenses,5034,Concierge services April 2021 to March 2022,12/01/2022,0163560,"6,643.35",Revenue,Sector Security Services,19269,,
Chorley Borough Council,http://statistics.data.gov.uk/id/local-authority/30UE,Homelessness,1075,Commercial & Property,Security Service,40062,Services,5027,In respect of concierge services at Cotswold Supported House for the period: 01/04/2021 - 31/03/2022,12/01/2022,0163561,"6,775.02",Revenue,Sector Security Services,19269,,
Chorley Borough Council,http://statistics.data.gov.uk/id/local-authority/30UE,Business Support,1095,Commercial & Property,External Contractor,40198,Miscellaneous Expenses,5034,Concierge services April 2021 to March 2022,26/01/2022,0164185,"7,349.58",Revenue,Sector Security Services,19269,,
Chorley Borough Council,http://statistics.data.gov.uk/id/local-authority/30UE,Central Support Services,1009,Commercial & Property,Planned Maintenance,20006,Repairs Maintenance & Alts,5005,Primrose Gardens Sprinkler system service,26/01/2022,0164214,349.00,Revenue,Sentinel Fire Services,81153,,
Chorley Borough Council,http://statistics.data.gov.uk/id/local-authority/30UE,Business Support,1095,Commercial & Property,Promotional Expenses,40159,Miscellaneous Expenses,5034,Footfall: S80087880 - Market Walk - System Management Services - Covering the Period - 01/07/2021 - 31/01/2022,19/01/2022,0163976,"1,838.55",Revenue,Shoppertrak Ltd,76208,,
Chorley Borough Council,http://statistics.data.gov.uk/id/local-authority/30UE,Central Support Services,1009,Policy & Governance,Lone Working System,40097,Communication and Computing,5028,Service Charge for December 2021 - Invoice 127886,26/01/2022,0164315,500.80,Revenue,SoloProtect Ltd,76206,,
Chorley Borough Council,http://statistics.data.gov.uk/id/local-authority/30UE,Business Support,1095,Commercial & Property,Window Cleaning,20034,Cleaning and Domestic Supplies,5012,12 months window cleaning,05/01/2022,0163818,477.95,Revenue,Sparkle Window Cleaning (Michael Jennings),77989,,
Chorley Borough Council,http://statistics.data.gov.uk/id/local-authority/30UE,Business Support,1095,Commercial & Property,Window Cleaning,20034,Cleaning and Domestic Supplies,5012,Quarterly window cleaning at Strawberry Fields Digital Hub,19/01/2022,0164066,374.00,Revenue,Sparkle Window Cleaning (Michael Jennings),77989,,
Chorley Borough Council,http://statistics.data.gov.uk/id/local-authority/30UE,Control Accounts,Control,Policy & Governance,General Balances,00100,Balance Sheet,Balance,Monthly Deductions from Salary,19/01/2022,0164078,351.54,Revenue,St Catherines Hospice Promotions,72375,,
Chorley Borough Council,http://statistics.data.gov.uk/id/local-authority/30UE,Open Spaces,1038,Communities,Professional Fees,40063,Services,5027,Management Support / Sport Development Lead,12/01/2022,0163474,"10,000.00",Revenue,Steve Wells Associates Ltd,77157,,
Chorley Borough Council,http://statistics.data.gov.uk/id/local-authority/30UE,Central Support Services,1009,Commercial & Property,Professional Fees,40063,Services,5027,Building Consultancy � M&E Design & Consultancy,12/01/2022,0163083,"1,214.68",Revenue,Steven A Hunt & Associates Ltd,80511,,
Chorley Borough Council,http://statistics.data.gov.uk/id/local-authority/30UE,Central Support Services,1009,Commercial & Property,Professional Fees,40063,Services,5027,Building Consultancy � M&E Design & Consultancy,12/01/2022,0163912,"1,214.68",Revenue,Steven A Hunt & Associates Ltd,80511,,
Chorley Borough Council,http://statistics.data.gov.uk/id/local-authority/30UE,Service Management & Support,1009,Commercial & Property,External Contractor,40198,Miscellaneous Expenses,5034,"Birkacre reservoir, Engineer services/inspection 2021",26/01/2022,0164286,850.00,Revenue,Stillwater Associates Limited,84045,,
Chorley Borough Council,http://statistics.data.gov.uk/id/local-authority/30UE,Parking Services,1066,Commercial & Property,Tools & Equipment - Maintenance,40005,"Equipment, Furniture & Materia",5023,"Supply & fix highway grade reflectorised bands 200mm wide to 33 columns, 80 x 150mm highway grade reflectorised plates",19/01/2022,0163970,521.50,Revenue,Street Civil Engineering Limited,76750,,
Chorley Borough Council,http://statistics.data.gov.uk/id/local-authority/30UE,Parking Services,1066,Commercial & Property,Consultants` Fees,40077,Services,5027,"Provision of Public Realm & Highway, Design, Engineering services, Dec 21 - Feb 22, Invoiced monthly on a days worked basis",26/01/2022,0164067,"3,511.35",Revenue,Street Civil Engineering Limited,76750,,
Chorley Borough Council,http://statistics.data.gov.uk/id/local-authority/30UE,Central Support Services,1009,Commercial & Property,General Repairs - Reactive,20004,Repairs Maintenance & Alts,5005,Friday st car park repairs - damaged panels,26/01/2022,0164217,895.00,Revenue,Stringfellow Bldg Cntrctrs Ltd,17893,,
Chorley Borough Council,http://statistics.data.gov.uk/id/local-authority/30UE,Corporate Management,1008,Policy & Governance,Miscellaneous Expenses,40200,Miscellaneous Expenses,5034,Breakfast and Lunch Buffet for Economic Summit 16th November 2021,12/01/2022,0162792,536.00,Revenue,Style Catering,66901,,
Chorley Borough Council,http://statistics.data.gov.uk/id/local-authority/30UE,Service Management & Support,1009,Customer & Digital,Refuse Collection,20037,Cleaning and Domestic Supplies,5012,Exchange 20 yard Street Sweeping Skip @ 80.96 to cover period  01/09/2021 - 31/03/2022,12/01/2022,0162212,647.68,Revenue,SUEZ R&R UK LTD,17615,,
Chorley Borough Council,http://statistics.data.gov.uk/id/local-authority/30UE,Service Management & Support,1009,Customer & Digital,Refuse Collection,20037,Cleaning and Domestic Supplies,5012,Exchange 35 yard General Waste Skip @ 89.94 to cover period  01/09/2021 - 31/03/2022,12/01/2022,0162212,989.34,Revenue,SUEZ R&R UK LTD,17615,,
Chorley Borough Council,http://statistics.data.gov.uk/id/local-authority/30UE,Central Support Services,1009,Customer & Digital,Refuse Collection,20037,Cleaning and Domestic Supplies,5012,"(1 April 21 to 31 March 22). Town Hall, PR7 1DP GENERAL WASTE 1 x 1100L bin 3 times per week.",19/01/2022,0163930,113.01,Revenue,SUEZ R&R UK LTD,17615,,
Chorley Borough Council,http://statistics.data.gov.uk/id/local-authority/30UE,Central Support Services,1009,Customer & Digital,Refuse Collection,20037,Cleaning and Domestic Supplies,5012,"(1 April 21 to 31 March 22). Town Hall, PR7 1DP MIXED RECYCLING  1 x 1100L bin once per week.",19/01/2022,0163930,22.01,Revenue,SUEZ R&R UK LTD,17615,,
Chorley Borough Council,http://statistics.data.gov.uk/id/local-authority/30UE,Central Support Services,1009,Customer & Digital,Refuse Collection,20037,Cleaning and Domestic Supplies,5012,(1 April 21 to 31 March 22). Civic Offices PR7 1AL GENERAL WASTE   2 x 1100L bin 3 times per week.,19/01/2022,0163930,226.03,Revenue,SUEZ R&R UK LTD,17615,,
Chorley Borough Council,http://statistics.data.gov.uk/id/local-authority/30UE,Central Support Services,1009,Customer & Digital,Refuse Collection,20037,Cleaning and Domestic Supplies,5012,(1 April 21 to 31 March 22). Civic Offices PR7 1AL MIXED RECYCLING   1 x 1100L bin once per week.,19/01/2022,0163930,22.01,Revenue,SUEZ R&R UK LTD,17615,,
Chorley Borough Council,http://statistics.data.gov.uk/id/local-authority/30UE,Culture & Heritage,1036,Customer & Digital,Refuse Collection,20037,Cleaning and Domestic Supplies,5012,"(1 April 21 to 31 March 22). Astley Hall, PR7 1NP GENERAL WASTE   1 x 1100L bin once per week.",19/01/2022,0163930,37.67,Revenue,SUEZ R&R UK LTD,17615,,
Chorley Borough Council,http://statistics.data.gov.uk/id/local-authority/30UE,Community Development,1097,Customer & Digital,Refuse Collection,20037,Cleaning and Domestic Supplies,5012,"(FY 2021 :2022) MP's Constituency Office 35-39 Market Street, PR7 2SW  1 X1100 L bin emptied once per week",19/01/2022,0163930,37.67,Revenue,SUEZ R&R UK LTD,17615,,
Chorley Borough Council,http://statistics.data.gov.uk/id/local-authority/30UE,Recreation & Sport,1037,Customer & Digital,Refuse Collection,20037,Cleaning and Domestic Supplies,5012,"(April 2021 - March 2022) Eaves Green Community Centre, Lower Burgh Way, PR7 3QG 1 X 360 L bin emptied once per week",19/01/2022,0163930,25.20,Revenue,SUEZ R&R UK LTD,17615,,
Chorley Borough Council,http://statistics.data.gov.uk/id/local-authority/30UE,Recreation & Sport,1037,Customer & Digital,Refuse Collection,20037,Cleaning and Domestic Supplies,5012,"(April 2021 - March 2022) Astley Village Community Centre, PR7 1XA   1 X 360 L bin emptied once per week",19/01/2022,0163930,20.49,Revenue,SUEZ R&R UK LTD,17615,,
Chorley Borough Council,http://statistics.data.gov.uk/id/local-authority/30UE,Recreation & Sport,1037,Customer & Digital,Miscellaneous Expenses,40200,Miscellaneous Expenses,5034,"(April 2021 - March 2022) Buttermere Green Community Centre,  PR7 2JG  1 X 360 L bin emptied once per week",19/01/2022,0163930,20.49,Revenue,SUEZ R&R UK LTD,17615,,
Chorley Borough Council,http://statistics.data.gov.uk/id/local-authority/30UE,Recreation & Sport,1037,Customer & Digital,Miscellaneous Expenses,40200,Miscellaneous Expenses,5034,"(April 2021 - March 2022) Lancaster Way Community Centre, Buckshaw Village PR7 7LJ 1 X 360 L bin emptied once per week",19/01/2022,0163930,20.49,Revenue,SUEZ R&R UK LTD,17615,,
Chorley Borough Council,http://statistics.data.gov.uk/id/local-authority/30UE,Recreation & Sport,1037,Customer & Digital,Refuse Collection,20037,Cleaning and Domestic Supplies,5012,"(April 2021 - March 2022) Tatton Community Centre, Worthy Street, PR6 0PL 1 X 360 L bin emptied once per week",19/01/2022,0163930,20.49,Revenue,SUEZ R&R UK LTD,17615,,
Chorley Borough Council,http://statistics.data.gov.uk/id/local-authority/30UE,Recreation & Sport,1037,Customer & Digital,Refuse Collection,20037,Cleaning and Domestic Supplies,5012,"(April 2021 - March 2022) Clayton Brook Village Hall, Clayton Brook, PR5 8SE Refuse Sacks -6 per week",19/01/2022,0163930,24.80,Revenue,SUEZ R&R UK LTD,17615,,
Chorley Borough Council,http://statistics.data.gov.uk/id/local-authority/30UE,Business Support,1095,Customer & Digital,Refuse Collection,20037,Cleaning and Domestic Supplies,5012,"(April 2021 - March 2022) Strawberry Fields Digital Hub, PR7 1PQ, GENERAL WASTE 3 X 1100L bins once per week",19/01/2022,0163930,113.01,Revenue,SUEZ R&R UK LTD,17615,,
Chorley Borough Council,http://statistics.data.gov.uk/id/local-authority/30UE,Business Support,1095,Customer & Digital,Refuse Collection,20037,Cleaning and Domestic Supplies,5012,"(April 2021 - March 2022) Strawberry Fields Digital Hub, PR7 1PQ, MIXED RECYCLING 3 X 1100L bins once per week",19/01/2022,0163930,66.03,Revenue,SUEZ R&R UK LTD,17615,,
Chorley Borough Council,http://statistics.data.gov.uk/id/local-authority/30UE,Recreation & Sport,1037,Customer & Digital,Miscellaneous Expenses,40200,Miscellaneous Expenses,5034,"(April 2021 - March 2022) All Seasons Leisure Centre, Water Street, PR7 1EX GENERAL WASTE 2 X 1100L bins once per week",19/01/2022,0163930,75.34,Revenue,SUEZ R&R UK LTD,17615,,
Chorley Borough Council,http://statistics.data.gov.uk/id/local-authority/30UE,Recreation & Sport,1037,Customer & Digital,Miscellaneous Expenses,40200,Miscellaneous Expenses,5034,"(April 2021 - March 2022) All Seasons Leisure Centre, PR7 1EX MIXED RECYCLING 1 X 1100L bins once per week",19/01/2022,0163930,22.01,Revenue,SUEZ R&R UK LTD,17615,,
Chorley Borough Council,http://statistics.data.gov.uk/id/local-authority/30UE,Recreation & Sport,1037,Customer & Digital,Miscellaneous Expenses,40200,Miscellaneous Expenses,5034,"(April 2021 - March 2022) Clayton Green Sports Centre, PR6 7TL, GENERAL WASTE 1 X 1100L bins once per week",19/01/2022,0163930,37.67,Revenue,SUEZ R&R UK LTD,17615,,
Chorley Borough Council,http://statistics.data.gov.uk/id/local-authority/30UE,Recreation & Sport,1037,Customer & Digital,Miscellaneous Expenses,40200,Miscellaneous Expenses,5034,"(April 2021 - March 2022) Clayton Green Sports Centre, PR6 7TL, MIXED RECYCLING 1 X 1100L bin once EVERY 2 WEEKS",19/01/2022,0163930,10.98,Revenue,SUEZ R&R UK LTD,17615,,
Chorley Borough Council,http://statistics.data.gov.uk/id/local-authority/30UE,Recreation & Sport,1037,Customer & Digital,Miscellaneous Expenses,40200,Miscellaneous Expenses,5034,"(April 2021 - March 2022)  Brinscall Public Baths, PR6 8QR, MIXED RECYCLING 1 X 1100L bin once EVERY 2 WEEKS",19/01/2022,0163930,10.98,Revenue,SUEZ R&R UK LTD,17615,,
Chorley Borough Council,http://statistics.data.gov.uk/id/local-authority/30UE,Recreation & Sport,1037,Customer & Digital,Miscellaneous Expenses,40200,Miscellaneous Expenses,5034,"(April 2021 - March 2022) Brinscall Public Baths, PR6 8QR GENERAL WASTE 1 X 1100L bin once per week.",19/01/2022,0163930,37.67,Revenue,SUEZ R&R UK LTD,17615,,
Chorley Borough Council,http://statistics.data.gov.uk/id/local-authority/30UE,Central Support Services,1009,Customer & Digital,Refuse Collection,20037,Cleaning and Domestic Supplies,5012,West Way Sports Hub Residual waste collections (Sept 2021 - 31 March 2022),19/01/2022,0163930,37.67,Revenue,SUEZ R&R UK LTD,17615,,
Chorley Borough Council,http://statistics.data.gov.uk/id/local-authority/30UE,Central Support Services,1009,Customer & Digital,Refuse Collection,20037,Cleaning and Domestic Supplies,5012,West Way Sports Hub RECYCLING collections (Sept 2021 - 31 March 2022),19/01/2022,0163930,5.52,Revenue,SUEZ R&R UK LTD,17615,,
Chorley Borough Council,http://statistics.data.gov.uk/id/local-authority/30UE,Central Support Services,1009,Communities,Miscellaneous Expenses,40200,Miscellaneous Expenses,5034,"Provision of skip at Clayton Brook Village Hall car park, Tunley Holme",19/01/2022,0163941,306.37,Revenue,SUEZ R&R UK LTD,17615,,
Chorley Borough Council,http://statistics.data.gov.uk/id/local-authority/30UE,Central Support Services,1009,Communities,Miscellaneous Expenses,40200,Miscellaneous Expenses,5034,Provision of Skip at Whittle Scout Hut - Chorley Old Rd,19/01/2022,0163941,469.92,Revenue,SUEZ R&R UK LTD,17615,,
Chorley Borough Council,http://statistics.data.gov.uk/id/local-authority/30UE,Business Support,1095,Commercial & Property,Refuse Collection,20037,Cleaning and Domestic Supplies,5012,"Skip Hire for vacant Unit 12 (former Clintons). Please deliver to Service Yard 1 where the compactor used to be, Transport",19/01/2022,0163967,303.33,Revenue,SUEZ R&R UK LTD,17615,,
Chorley Borough Council,http://statistics.data.gov.uk/id/local-authority/30UE,Capital,Capital,Communities,Main Contractor,03007,Capital Expenditure,Capital,Topographical survey at Wigan Lane Playing Pitches(front field) and link to previous topo surveys undertaken to create one DWG,19/01/2022,0164086,575.00,Capital,Survey Operations Ltd,55910,,
Chorley Borough Council,http://statistics.data.gov.uk/id/local-authority/30UE,Central Support Services,1009,Customer & Digital,CCTV Camera Maintenance,40007,"Equipment, Furniture & Materia",5023,CCTV camera repair and maintenance,19/01/2022,0163974,610.00,Revenue,Technology Solutions,72376,,
Chorley Borough Council,http://statistics.data.gov.uk/id/local-authority/30UE,Business Support,1095,Commercial & Property,Security Service,40062,Services,5027,Security cover at Strawberry Fields between October 2021 to December 2021,19/01/2022,0164032,"7,677.13",Revenue,The ExcluSec Group Ltd,78056,,
Chorley Borough Council,http://statistics.data.gov.uk/id/local-authority/30UE,Central Support Services,1009,Customer & Digital,Computer Equipment-Maintenance,40105,Communication and Computing,5028,"Renewal of TNP support - Chorley and SRBC, Annual support 24x7 SLA, 48 RMAcs, Renewal of TNP Network Service Support",26/01/2022,0160399,"5,200.00",Revenue,The Networking People (NorthWest) Ltd T/a TNP Ltd,73446,,
Chorley Borough Council,http://statistics.data.gov.uk/id/local-authority/30UE,Central Support Services,1009,Commercial & Property,Agency Staff,13000,Direct Employee Expenses,5001,Estate Surveyor fees for Lawrence Andrew Scrivens until end of 2021,26/01/2022,0164288,"2,103.60",Revenue,The Oyster Partnership Ltd,81409,,
Chorley Borough Council,http://statistics.data.gov.uk/id/local-authority/30UE,Capital,Capital,Commercial & Property,Main Contractor,03007,Capital Expenditure,Capital,"P8629 - ASTLEY HALL PROJECT, Professional services in connection with the above as per our fee quotation",26/01/2022,0164219,375.00,Capital,THOMAS CONSULTING LIMITED,84030,,
Chorley Borough Council,http://statistics.data.gov.uk/id/local-authority/30UE,Service Management & Support,1009,Customer & Digital,Grounds Maintenance Contractor,20043,Grounds Maintenance Costs,5013,Felling and removal of 1 dead tree adj. highway on Euxton Lane.,05/01/2022,0163752,840.00,Revenue,Treescape North West Ltd,17688,,
Chorley Borough Council,http://statistics.data.gov.uk/id/local-authority/30UE,Service Management & Support,1009,Customer & Digital,Grounds Maintenance Contractor,20043,Grounds Maintenance Costs,5013,Pollard one Horse Chestnut - Meadow Croft,05/01/2022,0163753,840.00,Revenue,Treescape North West Ltd,17688,,
Chorley Borough Council,http://statistics.data.gov.uk/id/local-authority/30UE,Service Management & Support,1009,Customer & Digital,Grounds Maintenance Contractor,20043,Grounds Maintenance Costs,5013,"Felling of two Cherries on Southport Road, including traffic management.",05/01/2022,0163754,960.00,Revenue,Treescape North West Ltd,17688,,
Chorley Borough Council,http://statistics.data.gov.uk/id/local-authority/30UE,Service Management & Support,1009,Customer & Digital,Grounds Maintenance Contractor,20043,Grounds Maintenance Costs,5013,One day pollarding Willows on Harpers Rec.,05/01/2022,0163771,820.00,Revenue,Treescape North West Ltd,17688,,
Chorley Borough Council,http://statistics.data.gov.uk/id/local-authority/30UE,Service Management & Support,1009,Customer & Digital,Grounds Maintenance Contractor,20043,Grounds Maintenance Costs,5013,Invoice 1020,12/01/2022,0163944,790.00,Revenue,Treexpert Tree Care,78580,,
Chorley Borough Council,http://statistics.data.gov.uk/id/local-authority/30UE,Service Management & Support,1009,Customer & Digital,Grounds Maintenance Contractor,20043,Grounds Maintenance Costs,5013,Treexpert invoice 1023,26/01/2022,0164081,"1,620.00",Revenue,Treexpert Tree Care,78580,,
Chorley Borough Council,http://statistics.data.gov.uk/id/local-authority/30UE,Capital,Capital,Commercial & Property,Main Contractor,03007,Capital Expenditure,Capital,"Professional Services for Building Decarbonisation support PSDS 3 application, energy survey, contractor quotation/visit",26/01/2022,0164109,"6,575.00",Capital,Twelvetrees Consulting,83893,,
Chorley Borough Council,http://statistics.data.gov.uk/id/local-authority/30UE,Central Support Services,1009,Policy & Governance,Publicity - Advertising,40157,Miscellaneous Expenses,5034,"Renewal of the hosting/server space for the WordPress websites (e.g. Chorley Flower Show, Check out Chorley, Astley Hall, etc)",26/01/2022,0164084,264.65,Revenue,UKFast.Net Limited,74638,,
Chorley Borough Council,http://statistics.data.gov.uk/id/local-authority/30UE,Control Accounts,Control,Policy & Governance,General Balances,00100,Balance Sheet,Balance,Monthly Deductions from salary,19/01/2022,0164077,"1,318.70",Revenue,Unify Credit Union Ltd,55509,,
Chorley Borough Council,http://statistics.data.gov.uk/id/local-authority/30UE,Development Control,1091,Policy & Governance,Agency Staff,13000,Direct Employee Expenses,5001,Contract for work. NAME REDACTED,19/01/2022,0163827,"1,665.00",Revenue,Vivid Resourcing Ltd,76938,,
Chorley Borough Council,http://statistics.data.gov.uk/id/local-authority/30UE,Development Control,1091,Policy & Governance,Agency Staff,13000,Direct Employee Expenses,5001,Contract for work. NAME REDACTED,19/01/2022,0163832,"1,642.50",Revenue,Vivid Resourcing Ltd,76938,,
Chorley Borough Council,http://statistics.data.gov.uk/id/local-authority/30UE,Development Control,1091,Policy & Governance,Agency Staff,13000,Direct Employee Expenses,5001,Contract for work. NAME REDACTED,19/01/2022,0163833,"1,642.50",Revenue,Vivid Resourcing Ltd,76938,,
Chorley Borough Council,http://statistics.data.gov.uk/id/local-authority/30UE,Development Control,1091,Policy & Governance,Agency Staff,13000,Direct Employee Expenses,5001,Contract for work. NAME REDACTED,19/01/2022,0163838,"1,620.00",Revenue,Vivid Resourcing Ltd,76938,,
Chorley Borough Council,http://statistics.data.gov.uk/id/local-authority/30UE,Development Control,1091,Policy & Governance,Agency Staff,13000,Direct Employee Expenses,5001,Contract for work. NAME REDACTED,19/01/2022,0163845,"1,642.50",Revenue,Vivid Resourcing Ltd,76938,,
Chorley Borough Council,http://statistics.data.gov.uk/id/local-authority/30UE,Development Control,1091,Policy & Governance,Agency Staff,13000,Direct Employee Expenses,5001,Contract for work. NAME REDACTED,19/01/2022,0163846,"1,642.50",Revenue,Vivid Resourcing Ltd,76938,,
Chorley Borough Council,http://statistics.data.gov.uk/id/local-authority/30UE,Development Control,1091,Policy & Governance,Agency Staff,13000,Direct Employee Expenses,5001,Contract for work. NAME REDACTED,19/01/2022,0163847,"1,642.50",Revenue,Vivid Resourcing Ltd,76938,,
Chorley Borough Council,http://statistics.data.gov.uk/id/local-authority/30UE,Development Control,1091,Policy & Governance,Consultants` Fees,40077,Services,5027,"The Agreement No: 38523, Start Date: 28/06/2021 - End date: 31/12/2021, Consultant name: NAME REDACTED",19/01/2022,0163848,"1,012.50",Revenue,Vivid Resourcing Ltd,76938,,
Chorley Borough Council,http://statistics.data.gov.uk/id/local-authority/30UE,Development Control,1091,Policy & Governance,Consultants` Fees,40077,Services,5027,"The Agreement No: 38523, Start Date: 28/06/2021 - End date: 31/12/2021, Consultant name: NAME REDACTED",19/01/2022,0163849,"1,110.00",Revenue,Vivid Resourcing Ltd,76938,,
Chorley Borough Council,http://statistics.data.gov.uk/id/local-authority/30UE,Development Control,1091,Policy & Governance,Agency Staff,13000,Direct Employee Expenses,5001,Contract for work. NAME REDACTED,19/01/2022,0163850,"1,642.50",Revenue,Vivid Resourcing Ltd,76938,,
Chorley Borough Council,http://statistics.data.gov.uk/id/local-authority/30UE,Development Control,1091,Policy & Governance,Consultants` Fees,40077,Services,5027,"The Agreement No: 38523, Start Date: 28/06/2021 - End date: 31/12/2021, Consultant name: NAME REDACTED",19/01/2022,0163851,727.50,Revenue,Vivid Resourcing Ltd,76938,,
Chorley Borough Council,http://statistics.data.gov.uk/id/local-authority/30UE,Development Control,1091,Policy & Governance,Agency Staff,13000,Direct Employee Expenses,5001,Contract for work. NAME REDACTED,19/01/2022,0163854,"1,642.50",Revenue,Vivid Resourcing Ltd,76938,,
Chorley Borough Council,http://statistics.data.gov.uk/id/local-authority/30UE,Development Control,1091,Policy & Governance,Agency Staff,13000,Direct Employee Expenses,5001,Contract for work. NAME REDACTED,19/01/2022,0163855,"1,642.50",Revenue,Vivid Resourcing Ltd,76938,,
Chorley Borough Council,http://statistics.data.gov.uk/id/local-authority/30UE,Development Control,1091,Policy & Governance,Consultants` Fees,40077,Services,5027,"The Agreement No: 38523, Start Date: 28/06/2021 - End date: 31/12/2021, Consultant name: NAME REDACTED",19/01/2022,0163856,"1,110.00",Revenue,Vivid Resourcing Ltd,76938,,
Chorley Borough Council,http://statistics.data.gov.uk/id/local-authority/30UE,Development Control,1091,Policy & Governance,Consultants` Fees,40077,Services,5027,"The Agreement No: 38523, Start Date: 28/06/2021 - End date: 31/12/2021, Consultant name: NAME REDACTED",19/01/2022,0163857,"1,080.00",Revenue,Vivid Resourcing Ltd,76938,,
Chorley Borough Council,http://statistics.data.gov.uk/id/local-authority/30UE,Development Control,1091,Policy & Governance,Consultants` Fees,40077,Services,5027,"The Agreement No: 38523, Start Date: 28/06/2021 - End date: 31/12/2021, Consultant name: NAME REDACTED",19/01/2022,0163858,975.00,Revenue,Vivid Resourcing Ltd,76938,,
Chorley Borough Council,http://statistics.data.gov.uk/id/local-authority/30UE,Development Control,1091,Policy & Governance,Consultants` Fees,40077,Services,5027,"The Agreement No: 38523, Start Date: 28/06/2021 - End date: 31/12/2021, Consultant name: NAME REDACTED",26/01/2022,0164028,"1,260.00",Revenue,Vivid Resourcing Ltd,76938,,
Chorley Borough Council,http://statistics.data.gov.uk/id/local-authority/30UE,Development Control,1091,Policy & Governance,Agency Staff,13000,Direct Employee Expenses,5001,Contract for work. Consultant name:  NAME REDACTED,26/01/2022,0164029,"2,317.50",Revenue,Vivid Resourcing Ltd,76938,,
Chorley Borough Council,http://statistics.data.gov.uk/id/local-authority/30UE,Central Support Services,1009,Commercial & Property,General Repairs - Reactive,20004,Repairs Maintenance & Alts,5005,Desilt a section of the river Chor just off Drumhead road as per quote to NAME REDACTED Access and dates to be arranged,05/01/2022,0163831,630.00,Revenue,W A Scott,81576,,
Chorley Borough Council,http://statistics.data.gov.uk/id/local-authority/30UE,Recreation & Sport,1037,Commercial & Property,Water - Metered Supplies,20022,Water Services,5009,15/11 to 14/12/21,05/01/2022,0163886,615.69,Revenue,Water-plus,17926,,
Chorley Borough Council,http://statistics.data.gov.uk/id/local-authority/30UE,Recreation & Sport,1037,Commercial & Property,Water - Metered Supplies,20022,Water Services,5009,15/10 to 14/11/21,05/01/2022,0163887,595.16,Revenue,Water-plus,17926,,
Chorley Borough Council,http://statistics.data.gov.uk/id/local-authority/30UE,Recreation & Sport,1037,Commercial & Property,Water - Metered Supplies,20022,Water Services,5009,15/9 to 14/10/21,05/01/2022,0163888,616.82,Revenue,Water-plus,17926,,
Chorley Borough Council,http://statistics.data.gov.uk/id/local-authority/30UE,Central Support Services,1009,Commercial & Property,Legal Fees,40171,Miscellaneous Expenses,5034,Provision of subsidy control statement - LERGF Town Centre funding application,26/01/2022,0164224,600.00,Revenue,Weightmans LLP,22212,,
Chorley Borough Council,http://statistics.data.gov.uk/id/local-authority/30UE,Central Support Services,1009,Commercial & Property,Legal Fees,40171,Miscellaneous Expenses,5034,Provision of subsidy control statement - LERGF Bengal Street funding application,26/01/2022,0164225,600.00,Revenue,Weightmans LLP,22212,,
Chorley Borough Council,http://statistics.data.gov.uk/id/local-authority/30UE,Central Support Services,1009,Commercial & Property,Legal Fees,40171,Miscellaneous Expenses,5034,Provision of Subsidy Control Statement - LERGF Buckshaw Parkway funding application,26/01/2022,0164226,400.00,Revenue,Weightmans LLP,22212,,
Chorley Borough Council,http://statistics.data.gov.uk/id/local-authority/30UE,Central Support Services,1009,Policy & Governance,Exhibitions & Special Events,40158,Miscellaneous Expenses,5034,"10 x medium book benches, 3 x large book benches, Delivery 250 total, 9000 total cost",19/01/2022,0164034,"9,000.00",Revenue,Wild in Art,76437,,
